Cogmind - Beta 15 @@@ ROGUE MODE // 2025.07.24 @ 21:39:34 Player: GiggleBox Result: Destroyed by P-80 Master with Gamma Rifle Performance ------------- Evolutions (8) 4000 Regions Visited (32) 6400 Robots Destroyed (388) 1940 Value Destroyed (19658) 19658 Prototype IDs (62) 1240 Alien Tech Used (3) 600 Bonus (11596) 11596 TOTAL SCORE: 45434 Bonus ------- Triggered Max Security 1000 High Alert Combat Kills 3603 Follower Combat Kills 2175 Entered Garrisons 400 Aligned with FarCom 300 Acquired ECA 300 Met Zhirov 300 Met Warlord at Base 500 MAIN.C Attacked Warlord 500 Warlord Defense Kills 416 Built Enhanced Grunts 300 A7 Reached Mainframe 300 Met R17 at Cetus 500 Met R17 at Research 2000 Scanned by Researcher 500 Friendly Fire -1498 Cogmind --------- Core Integrity 0/1450 Matter 182/300 Energy 100/100 System Corruption 46% Temperature Cool (0) Movement Core (100) Ox1 Location -2/Testing Parts ------- > --- POWER (2) -------- (None) > --- PROPULSION (6) --- (None) > --- UTILITY (9) ------ Advanced Target Analyzer > --- WEAPON (6) ------- Vortex Lance (fused) > --- INVENTORY (5) ---- Biometal Heavy Treads Superbattery (1500) Linear Accelerator Peak State ------------ > --- POWER ------------ Quantum Reactor Quantum Reactor > --- PROPULSION ------- Experimental Biometal Heavy Treads Enhanced Armored Heavy Treads Advanced Heavy Siege Treads > --- UTILITY ---------- Improved Cooling System High-capacity Storage Unit Experimental Optical Array Experimental Targeting Computer Advanced Target Analyzer Experimental Core Analyzer Improved Armor Integrity Analyzer Advanced Transmission Jammer Medium Regenerative Plating > --- WEAPON ----------- Helical Railgun Helical Railgun Helical Railgun Helical Railgun Helical Railgun Helical Railgun > --- INVENTORY -------- Particle Reactor Light Quantum Reactor Biometal Heavy Treads Advanced Heavy Siege Treads Improved Cooling System Superbattery Compact Matter Pod Medium Regenerative Plating High-powered Tractor Beam Transdimensional Reconstructor Railgun Advanced KE Penetrator Helical Railgun Linear Accelerator Linear Accelerator Enhanced Hardcell Cannon Long-range Missile Launcher Vortex Lance [Rating: 202] Favorites ----------- Power Quantum Reactor Engine Heavy Ion Engine Power Core Fission Core Reactor Quantum Reactor Propulsion Armored Treads Treads Armored Treads Leg Flexi-carbon Leg Wheel Wheel Hover Unit Gravmag System Utility High-capacity Storage Unit Device Improved Cooling System Storage High-capacity Storage Unit Processor Advanced Targeting Computer Protection Centrium Medium Armor Plating Weapon Advanced KE Penetrator Energy Gun Heavy Beamcaster Energy Cannon Phase Cannon Ballistic Gun Advanced KE Penetrator Ballistic Cannon Hardcell Cannon Launcher Grenade Launcher Special Weapon Welding Torch Impact Weapon Powered Hammer Slashing Weapon Phasing Sabre Piercing Weapon Vortex Lance Build | -11 -10 -10 -10 -9 -8 -7 -7 -7 -7 -7 -7 -7 -6 -6 -6 -6 -6 -5 -5 -5 -5 -4 -4 -4 -4 -4 -4 -4 -3 -3 -2 -2 ------- Run | Yrd Mat Min Exi Min Mat Fac Gar Fac Gar Fac Low Low Fac Ext Cet Arc Hub Fac Upp Upp Zhi Pro Fac Was Fac Upp Upp War Pro Res Res Tes Slots Evolved 16 | . . . . . 4 2 . . . . . . 2 . . . . 2 . . . . 2 . . . . . . 2 2 . Power 1 | . . . . . . . . . . . . . . . . . . 1 . . . . . . . . . . . . . . Propulsion 4 | . . . . . 2 . . . . . . . . . . . . . . . . . 1 . . . . . . 1 . . Utility 7 | . . . . . 1 1 . . . . . . 2 . . . . 1 . . . . . . . . . . . 1 1 . Weapon 4 | . . . . . 1 1 . . . . . . . . . . . . . . . . 1 . . . . . . . 1 . Parts Attached 246 | 8 15 7 . . 15 5 5 6 20 3 18 . 41 14 6 4 6 5 . . 4 2 6 2 4 1 . 2 3 20 17 7 Power 24 | 1 1 2 . . . . . 2 1 1 . . 4 1 1 . . 1 . . 1 . . . 2 . . . . 2 3 1 Engine 8 | 1 1 2 . . . . . 1 1 . . . 2 . . . . . . . . . . . . . . . . . . . Core 4 | . . . . . . . . 1 . 1 . . . 1 . . . . . . . . . . . . . . . 1 . . Reactor 12 | . . . . . . . . . . . . . 2 . 1 . . 1 . . 1 . . . 2 . . . . 1 3 1 Propulsion 55 | 2 3 2 . . 6 2 . . 5 . 4 . 12 4 . 3 2 . . . 1 . 2 1 . . . . . 2 4 . Treads 39 | 2 3 2 . . 6 2 . . 5 . 3 . 2 . . 3 2 . . . . . 2 1 . . . . . 2 4 . Leg 11 | . . . . . . . . . . . 1 . 5 4 . . . . . . 1 . . . . . . . . . . . Wheel 3 | . . . . . . . . . . . . . 3 . . . . . . . . . . . . . . . . . . . Hover 2 | . . . . . . . . . . . . . 2 . . . . . . . . . . . . . . . . . . . Flight . | . . . . . . . . . . . . . . . . . . . . . . . . . . . . . . . . . Utility 75 | 2 5 2 . . 5 2 . 2 4 . 6 . 15 6 1 . 1 3 . . 2 . 1 1 . 1 . . 1 8 3 4 Device 32 | 1 1 . . . 2 1 . . 2 . 3 . 12 2 . . 1 2 . . . . . 1 . 1 . . . 1 1 1 Storage 4 | 1 2 . . . . . . . . . . . . . . . . . . . 1 . . . . . . . . . . . Processor 18 | . . 1 . . 1 . . 1 1 . 1 . 2 . . . . 1 . . . . 1 . . . . . 1 6 1 1 Hackware . | . . . . . . . . . . . . . . . . . . . . . . . . . . . . . . . . . Protection 21 | . 2 1 . . 2 1 . 1 1 . 2 . 1 4 1 . . . . . 1 . . . . . . . . 1 1 2 Artifact . | . . . . . . . . . . . . . . . . . . . . . . . . . . . . . . . . . Weapon 92 | 3 6 1 . . 4 1 5 2 10 2 8 . 10 3 4 1 3 1 . . . 2 3 . 2 . . 2 2 8 7 2 Energy Gun 11 | . 1 . . . . . . 2 . . 1 . 2 3 1 . 1 . . . . . . . . . . . . . . . Energy Cannon 6 | . . . . . 1 . . . . . . . 5 . . . . . . . . . . . . . . . . . . . Ballistic Gun 50 | 3 1 . . . 3 1 4 . 8 2 5 . . . 2 1 2 . . . . 1 1 . . . . . 2 6 7 1 Ballistic Cannon 13 | . 1 1 . . . . . . 1 . . . . . 1 . . . . . . 1 2 . 2 . . 1 . 2 . 1 Launcher 6 | . 3 . . . . . 1 . . . . . 2 . . . . . . . . . . . . . . . . . . . Special Weapon 1 | . . . . . . . . . . . . . 1 . . . . . . . . . . . . . . . . . . . Impact Weapon 1 | . . . . . . . . . 1 . . . . . . . . . . . . . . . . . . . . . . . Slashing Weapon 3 | . . . . . . . . . . . 2 . . . . . . 1 . . . . . . . . . . . . . . Piercing Weapon 1 | . . . . . . . . . . . . . . . . . . . . . . . . . . . . 1 . . . . Special Melee Weapon . | . . . . . . . . . . . . . . . . . . . . . . . . . . . . . . . . . Unidentified Prototypes 29 | . 1 . . . . . . 1 1 2 . . 1 . 3 1 2 . . . 4 . 1 . 1 . . 1 1 5 2 2 Parts Lost 94 | . 2 9 . . 1 . 1 1 8 . 18 . 21 1 2 1 . . . . . 3 1 . . 1 . . 2 1 2 19 Power 12 | . . 2 . . . . . 1 1 . 1 . 3 . . . . . . . . . . . . . . . . . 1 3 Propulsion 17 | . . 2 . . . . . . 3 . 4 . 7 . . . . . . . . . . . . . . . . . . 1 Utility 25 | . 1 2 . . . . . . 1 . 6 . 4 . . . . . . . . 1 . . . 1 . . 1 . 1 7 Weapon 40 | . 1 3 . . 1 . 1 . 3 . 7 . 7 1 2 1 . . . . . 2 1 . . . . . 1 1 . 8 Highest Loss Streak 16 | . 1 9 . . 1 . 1 1 3 . 16 . 8 1 2 1 . . . . . 2 1 . . 1 . . 2 1 1 15 To Critical Strikes 3 | . . . . . . . . . . . 2 . . . . . . . . . . . . . . . . . . . . 1 Average Backups 17 | 2 15 18 14 15 18 19 19 19 18 18 12 17 16 19 18 18 18 16 17 17 19 18 17 17 16 16 16 16 16 16 17 13 Power 1 | . 1 1 2 3 1 . . . 1 1 . . 1 1 1 1 1 1 2 2 2 2 2 1 1 1 1 1 1 1 1 1 Propulsion 2 | . 3 4 3 3 3 4 4 4 2 3 . . . 3 3 3 3 1 1 1 2 2 2 2 1 2 2 2 2 2 1 1 Utility 7 | . 6 7 6 7 9 10 11 10 9 9 6 8 8 8 8 8 8 7 8 8 8 7 7 8 8 7 7 7 6 6 5 3 Weapon 4 | . 3 3 1 1 2 3 4 4 5 5 4 8 5 5 5 4 5 5 5 5 6 5 3 3 3 3 3 3 4 5 8 6 Tool/Special . | . . . . . . . . . . . . . . . . . . . . . . . . . . . . . . . . . Unused Backups 48 | . 5 . . . 7 4 3 2 3 1 . . 3 4 2 . 2 . . . 1 1 . 1 . . . . . 4 3 2 Power 9 | . 2 . . . 2 1 . . . 1 . . 1 . 1 . . . . . 1 . . . . . . . . . . . Propulsion 12 | . 2 . . . 1 . . . 2 . . . . 2 . . . . . . . . . 1 . . . . . 2 2 . Utility 18 | . 1 . . . 3 1 2 2 1 . . . . 2 . . 1 . . . . 1 . . . . . . . 1 1 2 Weapon 8 | . . . . . 1 1 1 . . . . . 2 . 1 . 1 . . . . . . . . . . . . 1 . . Tool/Special 1 | . . . . . . 1 . . . . . . . . . . . . . . . . . . . . . . . . . . Average Slot Usage (%) 91 | . 98 97 100 100 99 99 99 98 94 84 81 100 82 100 99 98 93 93 94 94 94 94 89 89 89 89 89 89 88 84 85 64 Engine 3 | . 14 12 14 14 9 7 7 4 2 6 5 7 3 . . . . . . . . . . . . . . . . . . . Core 1 | . . . . . . . . 1 4 . 1 . . 5 . . . . . . . . . . . . . . . 2 2 . Reactor 4 | . . . . . . . . . . . . . 2 . 5 6 6 11 11 11 11 11 10 10 10 10 10 10 10 5 5 5 Treads 17 | . 28 28 28 28 35 30 30 30 25 15 17 23 6 . . 2 20 17 17 17 17 17 15 15 15 15 15 15 15 13 13 10 Leg 3 | . . . . . . . . . . . 2 7 4 26 26 22 . . . . . . . . . . . . . . . . Device 9 | . 5 11 . . . 5 7 3 1 7 6 7 18 13 13 13 13 11 11 11 7 7 11 10 10 11 15 15 15 13 7 6 Storage 6 | . 14 14 14 14 9 7 7 7 7 7 7 7 6 6 6 6 6 5 5 5 5 5 5 5 5 5 5 5 5 4 4 3 Processor 11 | . . 1 14 14 9 7 7 11 15 15 8 7 11 13 13 13 13 16 17 17 17 17 15 15 15 13 10 10 9 14 21 15 Protection 4 | . 7 . . . 8 8 6 6 4 . 4 7 1 5 6 6 6 4 5 5 8 8 3 5 4 5 5 5 4 4 4 2 Energy Gun 3 | . . . . . . . . . . . 5 7 2 23 19 6 3 . . . . . 5 . . . . . . . . . Energy Cannon 1 | . . . . . . . . . . . . . 8 2 . 5 . . . . . . . . . . . . . . . . Ballistic Gun 17 | . 25 14 14 14 23 30 29 29 29 30 17 15 2 . 5 13 21 22 23 23 23 20 13 15 15 15 15 11 18 11 25 17 Ballistic Cannon 2 | . . 2 14 14 2 . . . . . . . . . . . . . . . . 1 3 9 10 10 10 10 6 11 . . Peak Build Rating 202 | 7 13 11 12 12 33 42 47 50 63 66 66 44 72 78 96 101 99 107 107 108 119 115 129 128 132 134 134 139 141 170 201 202 Average Rating 82 | 6 10 10 11 12 29 39 44 44 51 64 39 44 51 72 91 95 97 106 107 107 111 109 124 126 130 132 134 135 138 157 186 148 On Entrance 82 | . 7 11 10 12 12 32 42 45 50 63 66 44 44 70 78 96 97 96 107 107 108 114 103 128 127 132 134 134 138 139 162 201 Naked Turns 60 | . . . . . . . . . . . . . . . . . . . . . . . . . . . . . . . . 60 Heaviest Build 136 | 15 55 54 53 53 65 71 74 71 73 65 82 82 102 98 93 94 94 108 107 107 112 108 112 117 123 124 124 129 129 136 122 127 Greatest Support 245 | 40 40 40 40 40 80 80 80 80 150 150 150 63 66 76 76 126 126 120 120 120 120 120 180 180 180 180 180 180 180 235 245 245 Greatest Overweight (x) 21 | . 1 1 1 1 . . . . . . 16 1 21 1 1 1 . 1 1 . . . 1 . . . . . . . . 1 Average Overweight (x) . | . . 1 1 1 . . . . . . . 1 3 . 1 . . . . . . . . . . . . . . . . . Largest Inventory Capacity 20 | 8 20 20 20 20 20 20 20 20 20 20 20 20 20 20 20 20 20 20 20 20 20 20 20 20 20 20 20 20 20 20 20 20 Average Capacity 19 | 7 17 20 20 20 20 20 20 20 20 20 20 20 20 20 20 20 20 20 20 20 20 20 20 20 20 20 20 20 20 20 20 17 Most Carried 20 | 4 20 20 15 15 20 20 20 20 20 20 20 17 20 20 20 20 20 17 17 19 20 20 20 20 20 20 19 20 20 20 20 20 Average Carried 17 | 2 15 18 14 15 18 19 19 19 19 19 13 17 16 19 19 19 18 16 17 17 19 18 18 19 19 19 19 19 19 18 19 14 Final Capacity 20 | 8 20 20 20 20 20 20 20 20 20 20 20 20 20 20 20 20 20 20 20 20 20 20 20 20 20 20 20 20 20 20 20 5 Final Carried 20 | 4 20 11 15 15 20 20 20 20 20 20 17 17 17 20 19 20 17 17 17 19 20 17 19 20 20 19 19 20 18 20 20 4 Class Distribution -------------------- 26% | Scavenger-Gunner 26% | Scavenger-Tank 14% | Mutant 9% | Skirmisher 6% | Commander-Gunner 5% | Scavenger-Executioner 3% | Scavenger-Skirmisher Dominant Class ---------------- Mutant | -10/Materials Mutant | -10/Mines Mutant | -10/Exiles Mutant | -9/Mines Skirmisher | -8/Materials Skirmisher | -7/Factory Scavenger-Skirmisher | -7/Garrison Scavenger-Gunner | -7/Factory Scavenger-Gunner | -7/Garrison Scavenger-Gunner | -7/Factory Scavenger-Gunner | -7/Lower Caves Scavenger-Gunner | -7/Lower Caves Mutant | -6/Factory Scavenger-Gunner | -6/Extension Commander-Gunner | -6/Cetus Commander-Gunner | -6/Archives Scavenger-Tank | -6/Hub_04(d) Scavenger-Tank | -5/Factory Scavenger-Tank | -5/Upper Caves Scavenger-Tank | -5/Upper Caves Scavenger-Tank | -5/Zhirov Scavenger-Tank | -4/Proximity Caves Scavenger-Tank | -4/Factory Scavenger-Tank | -4/Waste Scavenger-Tank | -4/Factory Scavenger-Tank | -4/Upper Caves Scavenger-Tank | -4/Upper Caves Scavenger-Tank | -4/Warlord Scavenger-Tank | -3/Proximity Caves Scavenger-Gunner | -3/Research Scavenger-Executioner | -2/Research Scavenger-Executioner | -2/Testing Resources | -11 -10 -10 -10 -9 -8 -7 -7 -7 -7 -7 -7 -7 -6 -6 -6 -6 -6 -5 -5 -5 -5 -4 -4 -4 -4 -4 -4 -4 -3 -3 -2 -2 ----------- Run | Yrd Mat Min Exi Min Mat Fac Gar Fac Gar Fac Low Low Fac Ext Cet Arc Hub Fac Upp Upp Zhi Pro Fac Was Fac Upp Upp War Pro Res Res Tes Matter Collected 15376 | 331 751 179 . 1 1002 111 806 431 1786 39 1131 . 718 200 158 76 202 335 254 167 141 478 1025 598 118 228 154 287 530 820 1359 960 Remotely 4209 | . . . . . 130 63 191 149 . . 319 . . . . . . 100 . . . 251 562 . . . . . 159 339 1065 881 Salvage Created 21082 | 155 826 64 . . 1134 111 873 483 1870 39 905 . 1491 561 75 114 461 478 589 324 365 746 1711 1324 45 422 103 137 463 691 2239 2283 Parts 878 | 14 40 2 . . 55 9 50 23 85 . 39 . 70 25 2 8 14 25 18 21 2 39 82 5 4 9 7 3 28 26 89 84 Haulers Intercepted 9 | . 2 . . . 1 . . . . . . . . . . . 1 1 . . . . 1 . . . . . . 3 . . Recyclers Shooed 8 | . 2 . . . 2 . . . . . . . . . . . . . . . . . 1 . 1 . . . . 2 . . Parts Field Recycled . | . . . . . . . . . . . . . . . . . . . . . . . . . . . . . . . . . Retrieved Matter . | . . . . . . . . . . . . . . . . . . . . . . . . . . . . . . . . . Parts Self-Destructed 162 | . . . . . . . . . . . 33 . . . . . . . 18 20 1 41 . . . 11 10 . 28 . . . Prevented . | . . . . . . . . . . . . . . . . . . . . . . . . . . . . . . . . . Kills | -11 -10 -10 -10 -9 -8 -7 -7 -7 -7 -7 -7 -7 -6 -6 -6 -6 -6 -5 -5 -5 -5 -4 -4 -4 -4 -4 -4 -4 -3 -3 -2 -2 ------- Run | Yrd Mat Min Exi Min Mat Fac Gar Fac Gar Fac Low Low Fac Ext Cet Arc Hub Fac Upp Upp Zhi Pro Fac Was Fac Upp Upp War Pro Res Res Tes Combat Hostiles Destroyed 299 | . 12 2 . . 15 2 22 6 28 . 18 . 26 8 1 1 2 4 6 9 . 16 18 6 1 7 3 3 9 6 30 38 Melee 4 | . . . . . . . . . . . . . 3 . . . . . . . . . . . . . . . . . . 1 Guns 214 | . 8 . . . 12 2 17 6 28 . 13 . 2 5 1 . 2 4 6 9 . 16 12 3 . 4 1 2 8 2 30 21 Cannons 36 | . . 2 . . 3 . . . . . . . 8 3 . 1 . . . . . . 5 2 1 3 2 1 1 4 . . AOE 38 | . 4 . . . . . 5 . . . 5 . 6 . . . . . . . . . 1 1 . . . . . . . 16 Classes Destroyed 28 | 3 4 1 . . 3 1 3 . 1 . 1 . 1 . . . 1 . . . . 2 . 1 . . . 2 . 1 1 2 Worker 24 | 1 1 . . . . . . 1 . . . . 9 1 . . . 1 . . . . 6 . 1 . . . . 3 . . Builder 8 | . . . . . . . . . . . . . 4 . . . . . . . . . 2 . . . . . . 2 . . Tunneler 6 | 2 2 . . . . . . 1 . . . . 1 . . . . . . . . . . . . . . . . . . . Hauler 9 | . 2 . . . 1 . . . . . . . . . . . 1 1 . . . . 1 . . . . . . 3 . . Recycler 18 | 1 2 . . . 6 . . 3 . . . . . . . . . 1 . . . . 5 . . . . . . . . . Mechanic 3 | . . . . . . . 1 . . . . . . . . . . . . . . . . . . . . . . . . 2 Operator 6 | . 1 . . . 1 . . . . . . . . 1 . 1 . 1 . . . . 1 . . . . . . . . . Drone 2 | . . . . . . . . . . . . . . . . . . . . . . 2 . . . . . . . . . . Watcher 8 | . 3 . . . . . . . . 1 . . 1 . . . 3 . . . . . . . . . . . . . . . Swarmer 45 | . . . . . 4 . 9 2 6 . 1 . . . . . . . . 6 . 6 . . . . 2 . 4 1 4 . Saboteur 4 | . . . . . . . . . . . . . . . . . . . . . . . . . . . . 1 . . . 3 Grunt 91 | . 12 . . . 2 . 3 . 11 . 3 . 14 . . . 1 1 4 1 . 4 2 . . 5 . 1 . 3 7 17 Brawler 17 | . . . . . . . 1 . 2 . 6 . . 1 . . . . . . . . . . . 1 . . . . . 6 Duelist 9 | . . . . . . . . . 2 . 1 . 1 . . . . 1 . . . . . . . . . . . . . 4 Protector 5 | . . . . . . . . . . . . . . . . . . . . . . . . . . . . . . . . 5 Sentry 34 | . . . . . 8 1 2 3 2 . 1 . 3 7 . 1 . . 1 1 . . . . . 1 1 . 1 . 1 . Demolisher 2 | . . 2 . . . . . . . . . . . . . . . . . . . . . . . . . . . . . . Specialist 1 | . . . . . . . 1 . . . . . . . . . . . . . . . . . . . . . . . . . Hunter 23 | . . . . . 1 . 2 . 3 . . . 4 . . . . . 1 1 . 2 2 . . . . . . 2 5 . Programmer 34 | . . . . . . 1 4 1 2 . 1 . 4 . . . . 2 . . . 1 11 . 1 . . . 3 . 1 2 Heavy 1 | . . . . . . . . . . . . . . . . . 1 . . . . . . . . . . . . . . . Behemoth 3 | . . . . . . . . . . . . . . . . . . . . . . 1 1 . . . . . 1 . . . Compactor 6 | . . . . . . . . . . . . . . . . . . . . . . . . 6 . . . . . . . . Cetus Guard 1 | . . . . . . . . . . . . . . . 1 . . . . . . . . . . . . . . . . . Enhanced Grunt 1 | . . . . . . . . . . . . . . . . . 1 . . . . . . . . . . . . . . . Investigator 2 | . . . . . . . . . . . . . . . . . . . . . . . . . . . . . . . . 2 Striker 4 | . . . . . . . . . . . . . . . . . . . . . . . . . . . . . . . 4 . Executioner 10 | . . . . . . . . . . . . . . . . . . . . . . . . . . . . 1 . . 8 1 Decomposer 1 | . . . . . . . . . . . . . . . . . . . . . . . . . . . . . 1 . . . Wasp 1 | . . . . . . . . . . . . . . . . . . . . . . . 1 . . . . . . . . . Thug 1 | . . . . . . . . . . . . . . . . . 1 . . . . . . . . . . . . . . . Butcher 5 | . . . . . . . . . . . 3 . . . . . . . . . . . 1 . . . . 1 . . . . Mutant 3 | . . . . . . . . . . . 2 . . . . . . . . . . . 1 . . . . . . . . . Revision 1 | . . . . . . . . . . . . . . . . . . . . . . . . . . . . . . 1 . . Best Kill Streak 39 | 1 4 2 . . 5 1 5 4 6 1 12 . 7 3 1 1 4 3 3 8 . 5 8 2 1 5 3 2 4 6 9 39 Combat Bots Only 36 | . 3 2 . . 5 1 5 3 6 . 12 . 4 3 1 1 2 2 3 8 . 5 4 2 1 5 3 2 4 3 9 36 Max Kills in Single Turn 6 | 1 2 1 . . 1 1 2 1 2 1 2 . 4 1 1 1 3 1 1 3 . 2 6 1 1 2 1 1 1 2 3 6 Gunslinging 2 | . . . . . . . 1 . . . 1 . . . . . 1 . . 2 . 1 . . . . . . . . 2 1 Exploded 4 | . 2 . . . . . 2 . . . 2 . 2 . . . . . . . . . 1 1 . . . . . . . 4 Melee 1 | . . . . . . . . . . . . . 1 . . . . . . . . . . . . . . . . . . 1 Uniques/NPCs Destroyed . | . . . . . . . . . . . . . . . . . . . . . . . . . . . . . . . . . Combat | -11 -10 -10 -10 -9 -8 -7 -7 -7 -7 -7 -7 -7 -6 -6 -6 -6 -6 -5 -5 -5 -5 -4 -4 -4 -4 -4 -4 -4 -3 -3 -2 -2 -------- Run | Yrd Mat Min Exi Min Mat Fac Gar Fac Gar Fac Low Low Fac Ext Cet Arc Hub Fac Upp Upp Zhi Pro Fac Was Fac Upp Upp War Pro Res Res Tes Hostile Shots Fired 2088 | . 68 31 . . 56 57 70 46 202 . 194 . 258 95 21 2 12 11 30 30 . 90 72 . . 24 11 7 54 22 103 522 Missed 605 | . 25 1 . . 14 22 27 18 61 . 34 . 99 41 7 1 3 . 8 9 . 19 26 . . 4 3 2 12 5 27 137 Hits 1483 | . 43 30 . . 42 35 43 28 141 . 160 . 159 54 14 1 9 11 22 21 . 71 46 . . 20 8 5 42 17 76 385 Melee 109 | . . . . . . . . . 2 . 53 . . . . . . . . . . . . . . . . . . . 5 49 Projectile 1374 | . 43 30 . . 42 35 43 28 139 . 107 . 159 54 14 1 9 11 22 21 . 71 46 . . 20 8 5 42 17 71 336 AOE 42 | . . 32 . . 1 . . . . . . . 3 . . . . . . . . . 1 . . . . 3 . . . 2 Critical Strikes 75 | . . . . . 4 1 3 . 2 . 19 . 6 1 2 . . . 1 . . 2 1 . . 3 1 1 1 1 3 23 Part Disruptions 3 | . . . . . . 1 . . . . . . . . . . . 1 . . . . . . . . . . . . . 1 Damage Taken 29068 | . 575 1348 . . 689 379 661 412 1678 . 3953 . 2833 391 409 48 354 219 408 344 . 1481 1134 . 41 391 150 273 1105 325 2007 7460 Core 3064 | . 59 183 . . 29 24 14 15 103 . 398 . 412 15 . 24 . 62 22 17 . 69 58 . . 38 24 . 42 88 185 1183 Absorbed by Shields 3244 | . . . . . . . 10 . . . . . . 165 37 . . . . . . . . . . . . . . . . 3032 Reduced by Siege Mode 1824 | . . . . . . . . . 21 . 284 . . . . . . . 5 17 . 35 41 . . 55 . . 67 . 373 926 Ignored by Resistances 119 | . . . . . . . . . . . 71 . 12 36 . . . . . . . . . . . . . . . . . . Regen/Repaired (Parts) 2317 | . . . . . . . . 3 . . . . . . . . . . . . . . 831 617 303 123 . 89 . . 285 66 Core Remaining (%) 65 | 100 . . . 3 94 . . . . . . 20 . . . . 46 . . . . 83 . . . . . . 85 93 . . Volleys Fired 754 | 9 64 14 . 1 63 7 46 15 87 1 48 . 82 20 13 2 11 12 14 9 3 25 46 20 1 10 3 9 28 14 39 38 Largest 6 | 2 2 2 . 2 3 4 4 4 4 4 4 . 4 4 4 4 4 4 4 4 3 4 5 5 5 5 5 5 5 5 6 6 Hottest 316 | 40 65 60 . 50 121 97 106 106 175 102 129 . 195 316 312 235 183 118 118 118 103 122 214 204 190 190 190 215 215 252 228 233 Shots Fired 2585 | 18 126 28 . 2 173 28 154 60 339 4 150 . 123 77 33 7 39 48 56 37 9 100 178 99 5 50 15 43 121 70 234 159 Gun 2171 | 18 123 14 . 1 139 28 148 60 339 4 139 . 24 56 29 5 39 48 56 37 9 97 124 60 3 30 9 18 108 26 234 146 Cannon 380 | . 1 14 . 1 34 . . . . . 7 . 90 21 4 2 . . . . . 3 54 37 2 20 6 25 13 44 . 2 Launcher 34 | . 2 . . . . . 6 . . . 4 . 9 . . . . . . . . . . 2 . . . . . . . 11 Special . | . . . . . . . . . . . . . . . . . . . . . . . . . . . . . . . . . Kinetic 2275 | 18 114 28 . 2 162 28 148 60 328 4 131 . 21 . 4 4 35 48 56 37 9 100 156 96 5 50 15 43 121 70 234 148 Thermal 230 | . . . . . 11 . . . 11 . . . 72 77 29 3 4 . . . . . 22 1 . . . . . . . . Explosive 34 | . 2 . . . . . 6 . . . 4 . 9 . . . . . . . . . . 2 . . . . . . . 11 Electromagnetic 46 | . 10 . . . . . . . . . 15 . 21 . . . . . . . . . . . . . . . . . . . Robot Hit Streak 45 | 3 15 4 . 3 9 11 12 10 24 4 37 . 16 26 7 3 6 8 20 8 8 18 31 23 24 14 7 4 22 24 45 40 Robot Miss Streak 6 | 2 3 2 . . 6 2 4 4 4 1 6 . 3 3 2 1 3 3 1 3 . 6 4 3 1 2 3 3 3 3 4 3 Penetration Max 2 | . . . . . . . . . 1 . 1 . . . . . 1 1 . . 1 1 1 . . 1 . . . 1 1 2 Secondary Targets 65 | . 1 . . . 5 . 3 1 11 . 4 . . . . . 1 1 1 5 . 6 . . . . . . 3 . 13 10 Max Gunslinging Chain 2 | . 1 . . . 1 . 1 1 1 . 1 . . . . . 1 1 1 2 . 1 . . . . . . 1 . 2 2 Shots Hit Robots 1721 | 9 88 17 . 2 98 18 81 38 238 3 104 . 93 56 24 4 23 30 43 22 7 58 111 77 3 32 7 19 67 41 184 124 Core Hits 925 | 5 39 7 . . 41 5 49 22 108 2 50 . 59 28 12 3 15 12 17 13 6 34 56 18 3 17 3 11 21 23 85 161 Critical Kills 32 | . . . . . 1 . 2 . . . . . 4 . . . 2 1 . 1 . 3 3 . . . . . 2 . 6 7 Critical Parts Destroyed 50 | . . . . . . . . . 4 . . . 2 . 2 . 1 2 3 2 2 2 4 1 1 1 . . 1 3 8 11 Critical Strikes 114 | . . . . . 1 1 2 . 4 . 1 . 7 1 4 . 3 3 3 3 2 6 8 4 1 3 . 1 4 13 19 20 Burn 3 | . . . . . . . . . . . . . . 1 2 . . . . . . . . . . . . . . . . . Meltdown 2 | . . . . . . . . . . . . . 2 . . . . . . . . . . . . . . . . . . . Destroy 87 | . . . . . 1 1 2 . 3 . 1 . . . 2 . 3 3 3 3 2 6 7 3 1 1 . 1 4 3 19 18 Blast 16 | . . . . . . . . . . . . . . . . . . . . . . . 1 1 . 2 . . . 10 . 2 Smash 5 | . . . . . . . . . 1 . . . 4 . . . . . . . . . . . . . . . . . . . Sever 1 | . . . . . . . . . . . . . 1 . . . . . . . . . . . . . . . . . . . Melee Attacks 57 | . . . . . . . . . 7 . . . 18 . . . . 2 . . . . 20 . . . . . . . . 10 Impact 21 | . . . . . . . . . 7 . . . 14 . . . . . . . . . . . . . . . . . . . Slashing 26 | . . . . . . . . . . . . . 4 . . . . 2 . . . . 20 . . . . . . . . . Piercing . | . . . . . . . . . . . . . . . . . . . . . . . . . . . . . . . . . Entropic 10 | . . . . . . . . . . . . . . . . . . . . . . . . . . . . . . . . 10 Sneak Attacks 10 | . . . . . . . . . . . . . 4 . . . . 1 . . . . 5 . . . . . . . . . Combat Hostiles 1 | . . . . . . . . . . . . . 1 . . . . . . . . . . . . . . . . . . . Follow-up Attacks . | . . . . . . . . . . . . . . . . . . . . . . . . . . . . . . . . . Damage Inflicted 53360 | 116 1362 267 . 33 1443 340 1980 723 4909 47 2655 . 4484 1419 594 110 933 943 957 493 280 1435 4267 2316 162 1175 213 998 1911 1531 4989 10275 Guns 33502 | 116 1096 110 . 15 1155 325 1483 706 4286 47 1802 . 232 984 540 50 933 803 957 493 280 1409 2129 1115 58 628 93 324 1593 423 4989 4328 Cannons 7617 | . 16 157 . 18 285 . . . . . 127 . 1966 435 54 60 . . . . . 26 738 943 55 547 120 674 274 1021 . 101 Explosions 9824 | . 230 . . . . . 497 . . . 726 . 1541 . . . . . . . . . 961 258 . . . . . . . 5611 Melee 2116 | . . . . . . . . . 623 . . . 745 . . . . 74 . . . . 439 . . . . . . . . 235 Ramming 301 | . 20 . . . 3 15 . 17 . . . . . . . . . 66 . . . . . . 49 . . . 44 87 . . Kinetic 36146 | 116 995 267 . 33 1365 325 1483 706 4126 47 1832 . 171 . 54 50 821 803 957 493 280 1435 2501 2058 113 1175 213 998 1867 1444 4989 4429 Thermal 5271 | . 38 . . . 75 . . . 160 . 64 . 1476 1419 540 60 112 . . . . . 1327 . . . . . . . . . Explosive 8715 | . 192 . . . . . 497 . . . 662 . 1495 . . . . . . . . . . 258 . . . . . . . 5611 Electromagnetic 811 | . 117 . . . . . . . . . 97 . 597 . . . . . . . . . . . . . . . . . . . Impact 1331 | . . . . . . . . . 623 . . . 708 . . . . . . . . . . . . . . . . . . . Slashing 550 | . . . . . . . . . . . . . 37 . . . . 74 . . . . 439 . . . . . . . . . Piercing . | . . . . . . . . . . . . . . . . . . . . . . . . . . . . . . . . . Entropic 235 | . . . . . . . . . . . . . . . . . . . . . . . . . . . . . . . . 235 Highest Corruption 46 | . . . . . 2 1 4 5 9 9 29 28 3 3 . . 8 1 1 1 1 3 4 4 6 6 6 6 1 . . 46 Average Corruption 7 | . . . . . 2 1 1 4 7 9 24 28 2 2 . . 7 1 1 1 1 1 1 4 5 6 6 6 1 . . 27 Corruption Purged 7 | . . . . . . 1 . . . . 3 . . 3 . . . . . . . . . . . . . . . . . . Corruption Blocked . | . . . . . . . . . . . . . . . . . . . . . . . . . . . . . . . . . Effects 387 | . . . . . 9 1 6 18 53 17 122 3 26 11 . . 13 . 3 7 1 14 10 21 7 13 12 2 5 . . 13 Message Errors 86 | . . . . . 3 . 1 4 11 4 28 1 5 4 . . 4 . 1 1 . 6 1 5 1 2 1 . 1 . . 2 Matter Fused 95 | . . . . . 3 . 1 3 13 5 30 . 4 2 . . 2 . 2 3 1 4 2 7 2 3 4 1 1 . . 2 Heat Flow Errors 40 | . . . . . . . . 2 4 2 9 1 5 . . . 2 . . 1 . . 1 5 1 3 2 . 1 . . 1 Energy Discharges 37 | . . . . . 2 . 2 . 5 3 11 1 1 1 . . 1 . . . . . 3 1 2 2 . . . . . 2 Parts Rejected 2 | . . . . . . . . . . . . . . . . . . . . . . . 2 . . . . . . . . . Parts Fused 2 | . . . . . 1 . . . . . . . . . . . . . . . . . . . . . . . . . . 1 Data Loss (minor) 56 | . . . . . . 1 . 5 11 2 16 . 5 2 . . 3 . . . . . 1 1 1 2 4 1 1 . . . Data Loss (major) 27 | . . . . . . . . 4 2 1 10 . 4 1 . . . . . 1 . 1 . 1 . . 1 . 1 . . . Misfires 13 | . . . . . . . . . . . 10 . . . . . . . . 1 . 1 . . . . . . . . . 1 Alerts 6 | . . . . . . . 1 . 2 . 1 . . . . . . . . . . 1 . . . 1 . . . . . . Misdirections 3 | . . . . . . . . . . . . . . . . . . . . . . . . . . . . . . . . 3 Weapon Failures 20 | . . . . . . . 1 . 5 . 7 . 2 1 . . 1 . . . . 1 . 1 . . . . . . . 1 Overload Shots 1 | . . . . . . . . . . . . . . . 1 . . . . . . . . . . . . . . . . . Overflow Damage 964 | . 1 16 . . 1 . 13 . 108 . 20 . 344 . . . . . . . . . 257 . . . . . 38 47 . 119 Projectiles 133 | . . 16 . . 1 . . . . . . . 68 . . . . . . . . . 16 . . . . . . 23 . 9 Explosions 329 | . 1 . . . . . 13 . . . 20 . 25 . . . . . . . . . 182 . . . . . . . . 88 Melee 502 | . . . . . . . . . 108 . . . 251 . . . . . . . . . 59 . . . . . 38 24 . 22 Knockbacks 24 | . 2 1 . 1 1 1 . . . . 1 . 3 . . . . . . . . . 1 . . 2 . 5 . 5 . 1 Impact 6 | . 1 . . . . 1 . . . . . . 3 . . . . . . . . . . . . . . . . 1 . . Kinetic 17 | . 1 1 . 1 1 . . . . . 1 . . . . . . . . . . . 1 . . 2 . 4 . 4 . 1 Secondary 1 | . . . . . . . . . . . . . . . . . . . . . . . . . . . . 1 . . . . Self-Inflicted Damage 831 | . 31 . . . . . 52 . . . 156 . 213 . . . . . . . . . . . . . . . . . . 379 Shots 18 | . 1 . . . . . 2 . . . 3 . 6 . . . . . . . . . . . . . . . . . . 6 Rammed 19 | 1 2 . . . 1 3 . 1 . . . . . . . . . 3 . . . . . . 3 . . . 1 4 . . Targets Rammed 20 | 1 3 . . . 1 3 . 1 . . . . . . . . . 3 . . . . . . 3 . . . 1 4 . . Kicked . | . . . . . . . . . . . . . . . . . . . . . . . . . . . . . . . . . Crushed 1 | . 1 . . . . . . . . . . . . . . . . . . . . . . . . . . . . . . . Highest Temperature 373 | . 111 12 . . 136 162 64 248 306 200 263 101 87 166 19 . 263 2 14 72 9 373 88 246 198 278 303 83 85 145 21 42 Average Temperature 61 | . 29 6 . . 36 83 24 77 87 92 81 67 31 66 19 . 138 2 5 25 6 57 18 108 101 108 105 38 34 54 12 13 Received Heat Transfer 4484 | . 303 . . . 216 12 12 48 396 . 486 . 756 105 . 9 27 9 120 18 . 425 72 . . 139 359 37 54 66 27 788 Effects 7 | . . . . . . . . . 4 . 1 . . . . . 1 . . . . 1 . . . . . . . . . . Shutdowns 1 | . . . . . . . . . . . . . . . . . . . . . . 1 . . . . . . . . . . Energy Bleed 3 | . . . . . . . . . 1 . 1 . . . . . 1 . . . . . . . . . . . . . . . Interference 2 | . . . . . . . . . 2 . . . . . . . . . . . . . . . . . . . . . . . Short Circuit 1 | . . . . . . . . . 1 . . . . . . . . . . . . . . . . . . . . . . . Siege Activations 31 | . . . . . . . . . 1 . 2 . . . . . 1 1 1 1 . 4 3 4 . 2 . . 4 1 5 1 Total Turns 617 | . . . . . . . . . 20 . 80 . . . . . 12 11 7 13 . 43 51 57 . 25 . . 36 7 120 135 Longest Duration 135 | . . . . . . . . . 20 . 68 . . . . . 12 11 7 13 . 27 22 19 . 16 . . 15 7 42 135 Martial Activations . | . . . . . . . . . . . . . . . . . . . . . . . . . . . . . . . . . Shielding Activations . | . . . . . . . . . . . . . . . . . . . . . . . . . . . . . . . . . Robots Disrupted 1 | . . . . . . . . . . . . . 1 . . . . . . . . . . . . . . . . . . . Combat Hostiles 1 | . . . . . . . . . . . . . 1 . . . . . . . . . . . . . . . . . . . Robots Corrupted 10 | . . . . . . . . . 1 . . . 7 . . . . . . . . . . . . . . . 1 1 . . Combat Hostiles 6 | . . . . . . . . . . . . . 6 . . . . . . . . . . . . . . . . . . . Parts Fried 19 | . . . . . . . . . 5 . . . 13 . . . . . . . . . . . . . . . . 1 . . Impact Corruptions 16 | . . . . . . . . . 3 . . . 7 . . . . . . . . . . . . . . . 4 2 . . Robots Melted 2 | . . . . . . . . . . . . . 2 . . . . . . . . . . . . . . . . . . . Combat Hostiles 1 | . . . . . . . . . . . . . 1 . . . . . . . . . . . . . . . . . . . Parts Melted 18 | . . . . . . . . . 1 . . . 2 8 4 . . . . . . . 1 . 1 1 . . . . . . Heat Transferred 6908 | . 50 . . . 111 . . . 296 . 50 . 1641 2294 1036 74 148 . . . . . 1208 . . . . . . . . . Parts Sabotaged 2 | . . . . . . . . . . . . . . . . . . . . . . . . . . . . . . . . 2 Parts Stolen . | . . . . . . . . . . . . . . . . . . . . . . . . . . . . . . . . . Parts Stripped . | . . . . . . . . . . . . . . . . . . . . . . . . . . . . . . . . . Power Chain Reactions 3 | . 1 . . . . . . . . . 1 . 1 . . . . . . . . . . . . . . . . . . . Alert | -11 -10 -10 -10 -9 -8 -7 -7 -7 -7 -7 -7 -7 -6 -6 -6 -6 -6 -5 -5 -5 -5 -4 -4 -4 -4 -4 -4 -4 -3 -3 -2 -2 ------- Run | Yrd Mat Min Exi Min Mat Fac Gar Fac Gar Fac Low Low Fac Ext Cet Arc Hub Fac Upp Upp Zhi Pro Fac Was Fac Upp Upp War Pro Res Res Tes Maximum Alert Level 5 | . . . . . . . 3 1 4 2 . . 1 2 1 . 2 . . . . . 2 1 1 . . . . . 3 5 Low Security (%) 70 | 100 100 100 . 100 100 100 35 . . . . . 95 69 69 100 44 100 . . . . 60 84 69 . . . . 100 54 . Level 1 11 | . . . . . . . 20 100 14 . . . 4 14 30 . 54 . . . . . 20 15 30 . . . . . 4 . Level 2 12 | . . . . . . . 36 . 41 100 . . . 16 . . 1 . . . . . 18 . . . . . . . 40 . Level 3 2 | . . . . . . . 8 . 22 . . . . . . . . . . . . . . . . . . . . . 1 . Level 4 1 | . . . . . . . . . 21 . . . . . . . . . . . . . . . . . . . . . . . Level 5 . | . . . . . . . . . . . . . . . . . . . . . . . . . . . . . . . . . High Security . | . . . . . . . . . . . . . . . . . . . . . . . . . . . . . . . . . Max Security 2 | . . . . . . . . . . . . . . . . . . . . . . . . . . . . . . . . 99 Peak Influence 2722 | 5 93 32 . . 182 46 714 383 1235 648 . . 209 434 290 197 402 189 . . . . 654 245 261 . . . . 91 709 2722 Initial 648 | . 3 31 . . . 46 8 374 266 648 . . 3 98 220 44 . 183 . . . . 300 227 . . . . . 2 . 342 Average 211 | . 21 3 . . 66 5 336 313 752 531 . . 58 132 174 51 189 156 . . . . 214 91 132 . . . . 9 266 2026 Influence Increases 12175 | 20 440 50 . . 488 86 716 379 1049 7 409 . 866 805 380 204 681 219 150 200 10 330 1232 34 480 164 103 75 220 208 858 1312 Destroy 0b10 Robot/C 6580 | . 240 40 . . 300 40 440 200 560 . 340 . 520 340 160 80 220 120 120 180 . 280 360 . 160 140 80 60 180 120 600 700 Destroy 0b10 Robot/NC 545 | 20 55 . . . 40 . 10 25 30 5 . . 75 30 10 5 25 20 10 . 10 10 75 . 15 . . . . 40 . 35 Destroy Leader 1162 | . 70 10 . . 102 20 20 70 40 2 30 . 142 46 . . 78 22 20 20 . 40 92 . 42 . 10 . 40 26 120 100 Allied During Kill 1141 | . . . . . . . 3 8 . . 9 . . 323 170 85 266 23 . . . . . . 217 24 13 . . . . . Successful Hack 225 | . 5 . . . 23 26 7 18 14 . . . 3 59 8 . 27 . . . . . 35 . . . . . . . . . Select Force Hacks 50 | . 50 . . . . . . . . . . . . . . . . . . . . . . . . . . . . . . . Disable Machine 510 | . . . . . 15 . . 30 15 . . . 30 . 15 30 45 . . . . . 180 . 15 . . . . . 15 120 Anti-Garrison Action 450 | . . . . . . . 150 . 300 . . . . . . . . . . . . . . . . . . . . . . . Destroy Structure 732 | . 20 . . . 8 . 56 13 60 . . . 81 7 17 4 20 34 . . . . 190 34 16 . . . . 22 48 102 Advance Influence 300 | . . . . . . . . . . . . . . . . . . . . . . . 300 . . . . . . . . . Partial Spotted 15 | . . . . . . . . 15 . . . . . . . . . . . . . . . . . . . . . . . . Lose Combat Pursuer 465 | . . . . . . . 30 . 30 . 30 . 15 . . . . . . . . . . . 15 . . 15 . . 75 255 Influence Decreases 10711 | 15 365 130 . . 384 178 14 712 195 817 814 14 672 612 663 314 306 454 290 196 14 330 581 685 340 304 99 40 255 212 249 457 Entered New Map 2697 | . 2 49 . . . 58 4 340 115 587 158 4 3 102 173 66 . 192 52 . 4 . . 424 . 52 . 4 39 2 . 267 Time Decay 6363 | 15 343 71 . . 374 120 . 342 . 230 426 10 487 361 350 218 186 222 238 196 10 310 571 261 100 192 69 36 196 200 229 . Lost Part 812 | . 20 10 . . 10 . 10 10 80 . 170 . 182 10 20 10 . . . . . 20 10 . . 10 . . 20 10 20 190 Lost Ally 760 | . . . . . . . . 20 . . 60 . . 60 120 20 120 40 . . . . . . 240 50 30 . . . . . Purge Threat 79 | . . . . . . . . . . . . . . 79 . . . . . . . . . . . . . . . . . . Squads Dispatched 67 | . 3 . . . 1 1 . 4 . . . . 9 1 . . 9 2 . . . . 8 . 2 . . . . 3 1 23 Investigation 6 | . 3 . . . . . . . . . . . 1 . . . . . . . . . . . . . . . . 2 . . Extermination 14 | . . . . . . 1 . 1 . . . . 5 . . . 1 1 . . . . 5 . . . . . . . . . Reinforcement 17 | . . . . . 1 . . . . . . . 3 1 . . 3 1 . . . . 3 . 2 . . . . 1 1 1 Assault 24 | . . . . . . . . . . . . . . . . . 2 . . . . . . . . . . . . . . 22 Garrison 6 | . . . . . . . . 3 . . . . . . . . 3 . . . . . . . . . . . . . . . Intercept . | . . . . . . . . . . . . . . . . . . . . . . . . . . . . . . . . . Searches Triggered . | . . . . . . . . . . . . . . . . . . . . . . . . . . . . . . . . . Construction Impeded 3 | . . . . . . . . . . . . . 2 1 . . . . . . . . . . . . . . . . . . Haulers Reinforced 4 | . . . . . . . . . . . . . . . . . 1 . . . . . 2 . . . . . . 1 . . Active Scanning Responses . | . . . . . . . . . . . . . . . . . . . . . . . . . . . . . . . . . Cargo Convoy Interrupts . | . . . . . . . . . . . . . . . . . . . . . . . . . . . . . . . . . Stealth | -11 -10 -10 -10 -9 -8 -7 -7 -7 -7 -7 -7 -7 -6 -6 -6 -6 -6 -5 -5 -5 -5 -4 -4 -4 -4 -4 -4 -4 -3 -3 -2 -2 --------- Run | Yrd Mat Min Exi Min Mat Fac Gar Fac Gar Fac Low Low Fac Ext Cet Arc Hub Fac Upp Upp Zhi Pro Fac Was Fac Upp Upp War Pro Res Res Tes Distress Signals 27 | . 1 . . . 2 . . . . . . . . 1 2 . 3 1 . . . 1 1 . 1 . . 2 . 3 9 . Communications Jammed 122 | . . . . . . . . . . . . . 11 . . . . 1 . . . 2 1 . 80 . . 17 . 1 . 9 Distress Signals 120 | . . . . . . . . . . . . . 11 . . . . 1 . . . . 1 . 80 . . 17 . 1 . 9 Times Spotted 509 | . 22 2 . . 25 6 24 7 31 2 25 . 31 21 11 3 13 10 5 9 . 17 24 6 10 7 4 23 9 14 41 107 Peak Tracking Total 33 | . 3 2 . . 5 4 5 3 5 1 11 . 5 5 5 1 7 3 3 8 . 6 3 1 3 5 2 10 3 5 9 33 Tactical Retreats 14 | . . . . . . . 2 . 1 . 2 . 1 . . . . . . . . . . . 1 . . 1 . . 2 4 Traps | -11 -10 -10 -10 -9 -8 -7 -7 -7 -7 -7 -7 -7 -6 -6 -6 -6 -6 -5 -5 -5 -5 -4 -4 -4 -4 -4 -4 -4 -3 -3 -2 -2 ------- Run | Yrd Mat Min Exi Min Mat Fac Gar Fac Gar Fac Low Low Fac Ext Cet Arc Hub Fac Upp Upp Zhi Pro Fac Was Fac Upp Upp War Pro Res Res Tes Traps Triggered 16 | . 2 . . . 1 . 1 2 . . . . 2 2 . . 2 . . . . . 2 . . . . . . . . 2 Indirectly . | . . . . . . . . . . . . . . . . . . . . . . . . . . . . . . . . . Trap Hack Attempts . | . . . . . . . . . . . . . . . . . . . . . . . . . . . . . . . . . Triggered . | . . . . . . . . . . . . . . . . . . . . . . . . . . . . . . . . . Disarmed . | . . . . . . . . . . . . . . . . . . . . . . . . . . . . . . . . . Reprogrammed . | . . . . . . . . . . . . . . . . . . . . . . . . . . . . . . . . . Reused . | . . . . . . . . . . . . . . . . . . . . . . . . . . . . . . . . . Traps Extracted . | . . . . . . . . . . . . . . . . . . . . . . . . . . . . . . . . . Installed . | . . . . . . . . . . . . . . . . . . . . . . . . . . . . . . . . . Triggered . | . . . . . . . . . . . . . . . . . . . . . . . . . . . . . . . . . Machines | -11 -10 -10 -10 -9 -8 -7 -7 -7 -7 -7 -7 -7 -6 -6 -6 -6 -6 -5 -5 -5 -5 -4 -4 -4 -4 -4 -4 -4 -3 -3 -2 -2 ---------- Run | Yrd Mat Min Exi Min Mat Fac Gar Fac Gar Fac Low Low Fac Ext Cet Arc Hub Fac Upp Upp Zhi Pro Fac Was Fac Upp Upp War Pro Res Res Tes Machines Disabled 48 | . . . . . 1 . 4 2 5 . 2 . 2 2 1 2 3 . . . . 1 12 . 1 1 . . . . 1 8 Max in Single Turn 4 | . . . . . 1 . 1 . 1 . 1 . 1 1 1 . . . . . . 1 4 . 1 1 . . . . 1 1 Garrison Access 3 | . . . . . . . . . . . . . . . . . 1 . . . . . . . . . . . . . 1 1 Garrison Relay 7 | . . . . . . . 3 . 4 . . . . . . . . . . . . . . . . . . . . . . . Machines Repaired . | . . . . . . . . . . . . . . . . . . . . . . . . . . . . . . . . . Machines Dismantled . | . . . . . . . . . . . . . . . . . . . . . . . . . . . . . . . . . Machines Sabotaged 1 | . 1 . . . . . . . . . . . . . . . . . . . . . . . . . . . . . . . Overloaded Fab Kills . | . . . . . . . . . . . . . . . . . . . . . . . . . . . . . . . . . Hacking | -11 -10 -10 -10 -9 -8 -7 -7 -7 -7 -7 -7 -7 -6 -6 -6 -6 -6 -5 -5 -5 -5 -4 -4 -4 -4 -4 -4 -4 -3 -3 -2 -2 --------- Run | Yrd Mat Min Exi Min Mat Fac Gar Fac Gar Fac Low Low Fac Ext Cet Arc Hub Fac Upp Upp Zhi Pro Fac Was Fac Upp Upp War Pro Res Res Tes Machines Accessed 69 | . 6 . 2 . 6 3 1 3 1 . 1 . 4 19 3 1 1 1 . . 3 1 8 . 1 . . 4 . . . . Terminals 44 | . 5 . . . 5 2 1 . 1 . . . 3 17 3 . 1 1 . . . . 5 . . . . . . . . . Fabricators 4 | . . . . . . . . 1 . . . . 1 . . . . . . . . . 2 . . . . . . . . . Repair Stations 2 | . . . . . . . . 1 . . . . . . . . . . . . . . . . 1 . . . . . . . Recycling Units 3 | . 1 . . . . . . . . . . . . 2 . . . . . . . . . . . . . . . . . . Scanalyzers 2 | . . . . . 1 . . . . . . . . . . . . . . . . . 1 . . . . . . . . . Garrison Access 2 | . . . . . . 1 . 1 . . . . . . . . . . . . . . . . . . . . . . . . Total Hacks 148 | . 16 . 2 . 26 4 2 6 3 . 1 . 7 30 6 2 2 2 . . 13 1 13 . 2 . . 10 . . . . Successful 92 | . 10 . 2 . 16 2 1 4 1 . 1 . 4 15 1 2 1 . . . 13 1 6 . 2 . . 10 . . . . Failed 56 | . 6 . . . 10 2 1 2 2 . . . 3 15 5 . 1 2 . . . . 7 . . . . . . . . . Catastrophic 10 | . 1 . . . 1 1 . . . . . . . 3 1 . . . . . . . 3 . . . . . . . . . Database Lockouts . | . . . . . . . . . . . . . . . . . . . . . . . . . . . . . . . . . Manual 56 | . 11 . 1 . 21 3 . 1 . . . . 2 12 2 . . . . . . . 3 . . . . . . . . . Terminals 93 | . 13 . . . 24 3 2 . 3 . . . 5 26 6 . 2 2 . . . . 7 . . . . . . . . . Fabricators 7 | . . . . . . . . 3 . . . . 2 . . . . . . . . . 2 . . . . . . . . . Repair Stations 4 | . . . . . . . . 2 . . . . . . . . . . . . . . . . 2 . . . . . . . Recycling Units 7 | . 3 . . . . . . . . . . . . 4 . . . . . . . . . . . . . . . . . . Scanalyzers 6 | . . . . . 2 . . . . . . . . . . . . . . . . . 4 . . . . . . . . . Garrison Access 2 | . . . . . . 1 . 1 . . . . . . . . . . . . . . . . . . . . . . . . Terminal Hacks 50 | . 1 . 2 . 3 . 1 . 1 . 1 . 2 10 1 2 1 . . . 13 1 1 . . . . 10 . . . . Record 15 | . . . 1 . . . . . . . . . . . 1 2 . . . . 1 1 . . . . . 9 . . . . Part Schematic 5 | . . . . . 1 . . . . . . . . . . . . . . . 4 . . . . . . . . . . . Robot Analysis 6 | . . . . . 1 . . . . . . . . . . . 1 . . . 4 . . . . . . . . . . . Prototype ID Bank 5 | . 1 . . . . . . . . . . . . . . . . . . . 4 . . . . . . . . . . . Open Door 13 | . . . . . . . 1 . . . 1 . 1 9 . . . . . . . . . . . . . 1 . . . . Branch Access Points 1 | . . . . . . . . . . . . . . . . . . . . . . . 1 . . . . . . . . . Emergency Access Points 1 | . . . . . . . . . 1 . . . . . . . . . . . . . . . . . . . . . . . Unreport Threat 1 | . . . . . . . . . . . . . . 1 . . . . . . . . . . . . . . . . . . Locate Traps 1 | . . . . . 1 . . . . . . . . . . . . . . . . . . . . . . . . . . . Zone Layout 1 | . . . . . . . . . . . . . 1 . . . . . . . . . . . . . . . . . . . Proto ID Catalog 1 | . . . 1 . . . . . . . . . . . . . . . . . . . . . . . . . . . . . Fabricator Hacks 4 | . . . . . . . . 1 . . . . 1 . . . . . . . . . 2 . . . . . . . . . Network Status 3 | . . . . . . . . 1 . . . . 1 . . . . . . . . . 1 . . . . . . . . . Build 1 | . . . . . . . . . . . . . . . . . . . . . . . 1 . . . . . . . . . Repair Station Hacks 4 | . . . . . . . . 2 . . . . . . . . . . . . . . . . 2 . . . . . . . Scan Component 2 | . . . . . . . . 1 . . . . . . . . . . . . . . . . 1 . . . . . . . Repair 2 | . . . . . . . . 1 . . . . . . . . . . . . . . . . 1 . . . . . . . Recycling Unit Hacks 2 | . 2 . . . . . . . . . . . . . . . . . . . . . . . . . . . . . . . Retrieve Matter 1 | . 1 . . . . . . . . . . . . . . . . . . . . . . . . . . . . . . . Retrieve Components 1 | . 1 . . . . . . . . . . . . . . . . . . . . . . . . . . . . . . . Scanalyzer 4 | . . . . . 2 . . . . . . . . . . . . . . . . . 2 . . . . . . . . . Insert Component 3 | . . . . . 1 . . . . . . . . . . . . . . . . . 2 . . . . . . . . . Analyze 1 | . . . . . 1 . . . . . . . . . . . . . . . . . . . . . . . . . . . Garrison Access Hacks 2 | . . . . . . 1 . 1 . . . . . . . . . . . . . . . . . . . . . . . . Unlock Access 2 | . . . . . . 1 . 1 . . . . . . . . . . . . . . . . . . . . . . . . Unauthorized Hacks 26 | . 7 . . . 11 1 . . . . . . 1 5 . . . . . . . . 1 . . . . . . . . . Terminals 24 | . 7 . . . 11 1 . . . . . . 1 3 . . . . . . . . 1 . . . . . . . . . Track 2 | . . . . . 2 . . . . . . . . . . . . . . . . . . . . . . . . . . . Assimilate 2 | . . . . . 1 . . . . . . . . . . . . . . . . . 1 . . . . . . . . . Botnet 9 | . 2 . . . 2 1 . . . . . . 1 3 . . . . . . . . . . . . . . . . . . Operators 2 | . . . . . 2 . . . . . . . . . . . . . . . . . . . . . . . . . . . Skim 8 | . 4 . . . 4 . . . . . . . . . . . . . . . . . . . . . . . . . . . Sabotage 1 | . 1 . . . . . . . . . . . . . . . . . . . . . . . . . . . . . . . Fabricators . | . . . . . . . . . . . . . . . . . . . . . . . . . . . . . . . . . Repair Stations . | . . . . . . . . . . . . . . . . . . . . . . . . . . . . . . . . . Recycling Units 2 | . . . . . . . . . . . . . . 2 . . . . . . . . . . . . . . . . . . Reject 1 | . . . . . . . . . . . . . . 1 . . . . . . . . . . . . . . . . . . Mask 1 | . . . . . . . . . . . . . . 1 . . . . . . . . . . . . . . . . . . Scanalyzers . | . . . . . . . . . . . . . . . . . . . . . . . . . . . . . . . . . Garrison Access . | . . . . . . . . . . . . . . . . . . . . . . . . . . . . . . . . . Data Cores Recovered 4 | . . . . . 1 . . . . . . . . 1 . . . 1 . . . . 1 . . . . . . . . . Used 2 | . . . . . . . . . . . . . . 1 . . . 1 . . . . . . . . . . . . . . Hacking Detections 45 | . 6 . . . 5 3 . 1 1 . . . 2 14 3 . 1 1 . . . . 7 . 1 . . . . . . . Full Trace Events 1 | . . . . . 1 . . . . . . . . . . . . . . . . . . . . . . . . . . . Feedback Events . | . . . . . . . . . . . . . . . . . . . . . . . . . . . . . . . . . Feedback Blocked . | . . . . . . . . . . . . . . . . . . . . . . . . . . . . . . . . . Robot Schematics Acquired . | . . . . . . . . . . . . . . . . . . . . . . . . . . . . . . . . . Robots Built . | . . . . . . . . . . . . . . . . . . . . . . . . . . . . . . . . . Authchips . | . . . . . . . . . . . . . . . . . . . . . . . . . . . . . . . . . Time . | . . . . . . . . . . . . . . . . . . . . . . . . . . . . . . . . . Total Robot Build Rating . | . . . . . . . . . . . . . . . . . . . . . . . . . . . . . . . . . Part Schematics Acquired 6 | . . . . . 2 . . . . . . . . . . . . . . . 4 . . . . . . . . . . . Parts Built 1 | . . . . . . . . . . . . . . . . . . . . . . . 1 . . . . . . . . . Authchips . | . . . . . . . . . . . . . . . . . . . . . . . . . . . . . . . . . Time 139 | . . . . . . . . . . . . . . . . . . . . . . . 139 . . . . . . . . . Total Part Build Rating 9 | . . . . . . . . . . . . . . . . . . . . . . . 9 . . . . . . . . . Parts Repaired 2 | . . . . . . . . 1 . . . . . . . . . . . . . . . . 1 . . . . . . . Time 107 | . . . . . . . . 70 . . . . . . . . . . . . . . . . 37 . . . . . . . Parts Recycled . | . . . . . . . . . . . . . . . . . . . . . . . . . . . . . . . . . Recycled Matter . | . . . . . . . . . . . . . . . . . . . . . . . . . . . . . . . . . Retrieved Matter . | . . . . . . . . . . . . . . . . . . . . . . . . . . . . . . . . . Retrieved Components 6 | . 6 . . . . . . . . . . . . . . . . . . . . . . . . . . . . . . . Parts Scanalyzed 2 | . . . . . 1 . . . . . . . . . . . . . . . . . 1 . . . . . . . . . Part Schematics Acquired 1 | . . . . . 1 . . . . . . . . . . . . . . . . . . . . . . . . . . . Parts Damaged . | . . . . . . . . . . . . . . . . . . . . . . . . . . . . . . . . . Bothacking | -11 -10 -10 -10 -9 -8 -7 -7 -7 -7 -7 -7 -7 -6 -6 -6 -6 -6 -5 -5 -5 -5 -4 -4 -4 -4 -4 -4 -4 -3 -3 -2 -2 ------------ Run | Yrd Mat Min Exi Min Mat Fac Gar Fac Gar Fac Low Low Fac Ext Cet Arc Hub Fac Upp Upp Zhi Pro Fac Was Fac Upp Upp War Pro Res Res Tes Used RIF Installer . | . . . . . . . . . . . . . . . . . . . . . . . . . . . . . . . . . Robots Hacked . | . . . . . . . . . . . . . . . . . . . . . . . . . . . . . . . . . Non-combat . | . . . . . . . . . . . . . . . . . . . . . . . . . . . . . . . . . Combat . | . . . . . . . . . . . . . . . . . . . . . . . . . . . . . . . . . Robot Hacks Applied . | . . . . . . . . . . . . . . . . . . . . . . . . . . . . . . . . . Relay Couplers Released 39 | . . . . . . . 13 . 17 . . . . . . . 3 . . . . . 3 . . . . . . . 2 1 Machine Destruction 32 | . . . . . . . 9 . 17 . . . . . . . 3 . . . . . . . . . . . . . 2 1 Programmers 7 | . . . . . . . 4 . . . . . . . . . . . . . . . 3 . . . . . . . . . Fabnet Peak Effective % . | . . . . . . . . . . . . . . . . . . . . . . . . . . . . . . . . . Robots Rewired 21 | . . . . . . . . . . . 4 . . 12 . . . . . . . . . . . . . 5 . . . . Allies Hacked . | . . . . . . . . . . . . . . . . . . . . . . . . . . . . . . . . . Hacks Repelled . | . . . . . . . . . . . . . . . . . . . . . . . . . . . . . . . . . Allies | -11 -10 -10 -10 -9 -8 -7 -7 -7 -7 -7 -7 -7 -6 -6 -6 -6 -6 -5 -5 -5 -5 -4 -4 -4 -4 -4 -4 -4 -3 -3 -2 -2 -------- Run | Yrd Mat Min Exi Min Mat Fac Gar Fac Gar Fac Low Low Fac Ext Cet Arc Hub Fac Upp Upp Zhi Pro Fac Was Fac Upp Upp War Pro Res Res Tes Total Allies 61 | . . 3 . . . . 1 . . . 4 . . 25 5 . . . . . . . . 18 . . . 5 . . . . Largest Group 22 | . . 3 . . . . 1 1 . . 4 . . 21 22 18 16 2 . . . . . 18 18 5 2 5 . . . . Highest-Rated Group 1074 | . . 40 . . . . 39 39 . . 98 . . 695 1074 805 626 135 . . . . . 656 656 178 68 243 . . . . Highest-Rated Ally 159 | . . 16 . . . . 39 39 . . 31 . . 159 159 159 96 96 . . . . . 50 50 46 42 56 . . . . Initial Warlord ECA Mod 140 | . . . . . . . . 3 3 11 11 11 10 9 9 9 9 8 7 7 7 6 6 3 3 2 2 2 1 1 . . Warlord Squad Rendezvous 6 | . . . . . . . . . . . . . 1 . . . . 1 . . . . 3 . 1 . . . . . . . Dakka 4 | . . . . . . . . . . . . . 1 . . . . 1 . . . . 1 . 1 . . . . . . . Muscle 1 | . . . . . . . . . . . . . . . . . . . . . . . 1 . . . . . . . . . Chimera 1 | . . . . . . . . . . . . . . . . . . . . . . . 1 . . . . . . . . . Total Orders . | . . . . . . . . . . . . . . . . . . . . . . . . . . . . . . . . . Ally Attacks 435 | . . 2 . . . . 3 23 . . 28 . . 88 62 18 68 22 . . . . . . 85 16 7 13 . . . . Total Damage 9370 | . . . . . . . 45 417 . . 425 . . 1863 2005 331 1377 304 . . . . . . 1564 267 232 540 . . . . Kills 63 | . . . . . . . . 4 . . 5 . . 14 9 3 13 2 . . . . . . 11 . 1 1 . . . . Allies Corrupted 3 | . . . . . . . . . . . . . . . . . 2 1 . . . . . . . . . . . . . . Allies Melted 3 | . . . . . . . . . . . . . . . . . . . . . . . . . . . . 1 . . 2 . Intel | -11 -10 -10 -10 -9 -8 -7 -7 -7 -7 -7 -7 -7 -6 -6 -6 -6 -6 -5 -5 -5 -5 -4 -4 -4 -4 -4 -4 -4 -3 -3 -2 -2 ------- Run | Yrd Mat Min Exi Min Mat Fac Gar Fac Gar Fac Low Low Fac Ext Cet Arc Hub Fac Upp Upp Zhi Pro Fac Was Fac Upp Upp War Pro Res Res Tes Active Infowar (turns) 14433 | 144 787 556 . . . . . . . . . . 360 . . . . 446 664 633 319 914 1734 767 277 486 359 1082 1126 1831 1572 376 Optics 2350 | . . . . . . . . . . . . . . . . . . . . . . . . . . . . . . 453 1572 325 Terrain 2 | . . . . . . . . . . . . . 2 . . . . . . . . . . . . . . . . . . . Seismic 1487 | 144 787 556 . . . . . . . . . . . . . . . . . . . . . . . . . . . . . . Machine Analysis 8871 | . . . . . . . . . . . . . . . . . . 446 664 633 319 914 1734 767 277 486 359 1082 1126 64 . . Jamming 11070 | . . . . . . . . . . . . . 358 . . . . 443 664 633 318 914 1703 767 277 486 359 1082 1126 1828 6 106 Robot Analysis Total 6 | . . . . . 1 . . . . . . . . . . . 1 . . . 4 . . . . . . . . . . . Derelict Logs Recovered 9 | . . 1 . . . . . . . . 2 . . . . . . . 1 1 . 2 . . . . 2 . . . . . Drone Launches . | . . . . . . . . . . . . . . . . . . . . . . . . . . . . . . . . . Drone Recoveries . | . . . . . . . . . . . . . . . . . . . . . . . . . . . . . . . . . Exploration | -11 -10 -10 -10 -9 -8 -7 -7 -7 -7 -7 -7 -7 -6 -6 -6 -6 -6 -5 -5 -5 -5 -4 -4 -4 -4 -4 -4 -4 -3 -3 -2 -2 ------------- Run | Yrd Mat Min Exi Min Mat Fac Gar Fac Gar Fac Low Low Fac Ext Cet Arc Hub Fac Upp Upp Zhi Pro Fac Was Fac Upp Upp War Pro Res Res Tes Turns Passed 31885 | 198 1911 670 535 83 2003 909 885 770 1707 494 2549 37 2439 1896 780 866 430 468 664 633 319 914 1734 767 277 486 359 1082 1126 1831 1572 491 Spaces Moved 14606 | 94 794 258 222 18 759 409 407 367 738 296 985 16 1024 816 288 260 202 213 329 354 177 476 808 282 124 265 213 623 615 1082 842 250 Core 133 | 2 . . . . . . . . . . 1 . 2 . . . . . . . . . . . . . . . . . . 128 Treads 12420 | 92 794 258 222 18 759 409 407 367 738 296 984 16 300 . . 33 202 213 329 354 177 476 808 282 124 265 213 623 615 1082 842 122 Legs 1424 | . . . . . . . . . . . . . 93 816 288 227 . . . . . . . . . . . . . . . . Wheels 626 | . . . . . . . . . . . . . 626 . . . . . . . . . . . . . . . . . . . Hover 3 | . . . . . . . . . . . . . 3 . . . . . . . . . . . . . . . . . . . Flight . | . . . . . . . . . . . . . . . . . . . . . . . . . . . . . . . . . Fastest Speed 50 | 50 160 240 240 240 160 170 170 170 160 160 160 246 110 120 190 160 160 166 166 166 166 166 163 163 163 163 163 163 163 152 151 50 Average Speed 176 | 157 201 240 240 240 168 170 170 170 166 160 232 246 198 174 190 186 163 181 185 166 166 166 163 163 163 163 163 163 163 154 155 100 Slowest Speed 1100 | 160 240 240 240 240 170 170 170 170 170 160 850 246 1100 190 190 190 166 245 245 166 166 166 245 163 163 163 163 163 163 155 160 151 Overloaded Moves . | . . . . . . . . . . . . . . . . . . . . . . . . . . . . . . . . . Propulsion Burnouts . | . . . . . . . . . . . . . . . . . . . . . . . . . . . . . . . . . Robots Hopped . | . . . . . . . . . . . . . . . . . . . . . . . . . . . . . . . . . Potential Cave-ins 3 | . . . . . 2 . . . . . 1 . . . . . . . . . . . . . . . . . . . . . Cave-ins Triggered . | . . . . . . . . . . . . . . . . . . . . . . . . . . . . . . . . . Teleports 1 | . . . . . . . . . . . . . . . . . . . . . . . . . . . . . . . . 1 Exploration Rate (%) 47 | 6 99 52 61 4 58 9 48 9 74 11 97 5 30 86 84 97 21 7 50 61 62 70 21 97 6 42 41 79 82 23 40 44 Regions Visited 32 Branch Regions 18 Pre-discovered Areas 4 | . . . 1 . . . . . . . 2 . . . . . . . 1 . . . . . . . . . . . . . Known Exits Taken 6 | . . . . . . 1 . 1 . . . . . . . . . . . . . . . . 1 . 1 . 1 1 . . Unknown Exits Taken 22 | 1 1 1 1 1 1 . . . . 1 1 1 1 1 1 1 1 1 1 1 1 1 . . . 1 . 1 . . 1 . Scrap Searched 19 | . . . . . . . . . . . 5 . . . . . . . 4 4 . 1 . . . . 3 . 2 . . . Spaces Dug 40 | . . . . . 3 . . . . . . . 11 . . . . 1 . . . . 14 . . . . . 8 3 . . Terrain Destroyed 613 | . 19 . . . 8 . 49 . 1 . 53 . 104 5 3 1 8 8 16 15 1 25 104 29 . 9 4 10 43 11 26 61 Melee 15 | . . . . . . . . . . . . . 3 . . . . 1 . . . . 11 . . . . . . . . . Projectile 271 | . . . . . 8 . 3 . 1 . 2 . 28 5 3 1 8 7 16 15 1 25 22 12 . 9 4 10 43 11 25 12 AOE 325 | . 19 . . . . . 46 . . . 51 . 73 . . . . . . . . . 71 17 . . . . . . . 48 Terrain Rammed . | . . . . . . . . . . . . . . . . . . . . . . . . . . . . . . . . . Walls Destroyed . | . . . . . . . . . . . . . . . . . . . . . . . . . . . . . . . . . Machines Disabled . | . . . . . . . . . . . . . . . . . . . . . . . . . . . . . . . . . Actions | -11 -10 -10 -10 -9 -8 -7 -7 -7 -7 -7 -7 -7 -6 -6 -6 -6 -6 -5 -5 -5 -5 -4 -4 -4 -4 -4 -4 -4 -3 -3 -2 -2 --------- Run | Yrd Mat Min Exi Min Mat Fac Gar Fac Gar Fac Low Low Fac Ext Cet Arc Hub Fac Upp Upp Zhi Pro Fac Was Fac Upp Upp War Pro Res Res Tes Total 19076 | 121 981 281 225 57 1359 608 512 483 1021 320 1140 15 1273 1244 499 642 281 256 349 379 193 542 1079 539 195 295 219 673 687 1209 1016 383 Wait 2639 | 6 60 . . 39 484 168 30 79 133 7 13 . 48 260 172 361 44 11 7 13 . 34 163 225 55 20 4 2 35 35 72 59 Move 14571 | 93 793 257 221 17 758 409 406 367 733 295 984 15 1023 815 287 259 201 212 328 353 176 475 808 281 123 264 212 622 614 1081 841 248 Hop . | . . . . . . . . . . . . . . . . . . . . . . . . . . . . . . . . . Pick Up 207 | 4 25 . 4 . 16 7 6 5 11 6 15 . 24 8 7 7 5 2 . 3 3 1 3 3 2 . . 3 . 21 15 1 Fast Attach 64 | 7 2 . . . 2 . . 1 4 . 12 . 15 1 . . 1 . . . . . 6 . 1 . . . . 5 5 2 Attach 101 | . 1 9 . . 4 2 1 . 9 . 18 . 14 1 3 4 . 3 . . 1 3 3 1 . 1 . . 2 4 4 13 Detach 21 | . . . . . . . . . 6 . 2 . 5 . . 2 . 1 . . . . 2 . . . . . . 2 1 . Swap 261 | 1 17 1 . . 16 5 17 9 18 5 2 . 27 16 9 2 7 10 . . 8 3 23 4 5 . . 3 7 22 16 8 Drop 187 | . 16 . . . 15 7 5 6 13 6 2 . 17 14 8 5 12 . . 1 2 1 1 5 4 . . 2 . 21 23 1 Fire 754 | 9 64 14 . 1 63 7 46 15 87 1 48 . 82 20 13 2 11 12 14 9 3 25 46 20 1 10 3 9 28 14 39 38 Melee 57 | . . . . . . . . . 7 . . . 18 . . . . 2 . . . . 20 . . . . . . . . 10 Ram . | . . . . . . . . . . . . . . . . . . . . . . . . . . . . . . . . . Kick . | . . . . . . . . . . . . . . . . . . . . . . . . . . . . . . . . . Crush 20 | 1 3 . . . 1 3 . 1 . . . . . . . . . 3 . . . . . . 3 . . . 1 4 . . Escape Stasis 9 | . . . . . . . 1 . . . . . . 5 . . . . . . . . . . 1 . . . . . . 2 Rewire 185 | . . . . . . . . . . . 44 . . 104 . . . . . . . . 4 . . . . 32 . . . 1 Trap . | . . . . . . . . . . . . . . . . . . . . . . . . . . . . . . . . . Miscellaneous . | . . . . . . . . . . . . . . . . . . . . . . . . . . . . . . . . . Route ------- -11/Scrapyard -10/Materials (discovered 6 exits: [*Mat x3] / [*Min x2] / [*Sub]) -10/Mines (discovered 3 exits: [*Mat] / *Exi / [*Sub]) -10/Exiles -9/Mines -8/Materials (discovered 2 exits: *Fac x2) -7/Factory -7/Garrison -7/Factory (discovered 2 exits: *Low / Gar) -7/Garrison (discovered 3 exits: [*Fac x3]) -7/Factory -7/Lower Caves -7/Lower Caves -6/Factory -6/Extension (discovered 2 exits: *Fac / *Cet) -6/Cetus (discovered 2 exits: *Fac / *Arc) -6/Archives (discovered 3 exits: *Fac / *Hub x2) -6/Hub_04(d) (discovered 2 exits: *Fac x2) -5/Factory -5/Upper Caves -5/Upper Caves -5/Zhirov -4/Proximity Caves -4/Factory (discovered 4 exits: *Res x2 / Upp x2) -4/Waste -4/Factory -4/Upper Caves -4/Upper Caves -4/Warlord -3/Proximity Caves -3/Research (discovered 2 exits: *Res / Arm) -2/Research -2/Testing (discovered 2 exits: [*Sec] / [*Frg]) History --------- Turn | Location | Event 10 | -11/Scrapyard | Discovered new exit (range 14) 199 | -11/Scrapyard | Entered Materials 201 | -10/Materials | Discovered new exit (range 15) 314 | -10/Materials | Build established: Mutant 566 | -10/Materials | Discovered new exit (range 10) 635 | -10/Materials | Discovered new exit (range 8) 1185 | -10/Materials | Discovered new exit (range 13) 1323 | -10/Materials | Discovered new exit (range 8) 1799 | -10/Materials | Discovered new exit (range 4) 2110 | -10/Materials | Entered Mines 2144 | -10/Mines | Learned Materials terminal intel 2461 | -10/Mines | Discovered new exit (range 9) 2490 | -10/Mines | Discovered new exit (range 5) 2547 | -10/Mines | Assisted by bots powering up and referring to "LRC-V3" 2636 | -10/Mines | Assembled infested the area 2671 | -10/Mines | Core integrity fell below 50% 2675 | -10/Mines | Core integrity fell below 20% 2681 | -10/Mines | Lost 3 allies 2714 | -10/Mines | Lost 9 parts (2p2n2u3w) 2767 | -10/Mines | Deemed a non-threat by the Exiles lab entrance 2769 | -10/Mines | Discovered new exit (range 5) 2780 | -10/Mines | Entered Exiles 2848 | -10/Exiles | Met 8R-AWN 2882 | -10/Exiles | Met EX-HEX 2954 | -10/Exiles | Met EX-BIN 2983 | -10/Exiles | Aligned with FarCom system 2985 | -10/Exiles | Given EX-Vault access code 3047 | -10/Exiles | Opened EX-Vault 3064 | -10/Exiles | Found Superbattery 3111 | -10/Exiles | Warned to stay clear of 0b10 Research branches 3188 | -10/Exiles | Met EX-DEC 3216 | -10/Exiles | Learned location of Zion (-6) 3288 | -10/Exiles | Discovered new exit (range 12) 3315 | -10/Exiles | Left Exiles lab with Superbattery 3315 | -10/Exiles | Entered Mines 3323 | -9/Mines | Discovered new exit (range 8) 3398 | -9/Mines | Entered Materials 3398 | -8/Materials | Evolved 4 slots: Propulsion x2, Utility x1, Weapon x1 3399 | -8/Materials | Loaded intel: 12 terminal locations 3693 | -8/Materials | Build established: Skirmisher 4414 | -8/Materials | Discovered new exit (range 3) 4872 | -8/Materials | Discovered new exit (range 15) 5401 | -8/Materials | Entered Factory 5401 | -7/Factory | Evolved 2 slots: Utility x1, Weapon x1 6310 | -7/Factory | Identified exit to Garrison 6310 | -7/Factory | Entered Garrison 6380 | -7/Garrison | Triggered checkpoint 6423 | -7/Garrison | Garrison Relay disabled 6770 | -7/Garrison | Triggered checkpoint 6920 | -7/Garrison | Discovered new exit (range 12) 7014 | -7/Garrison | Triggered checkpoint 7047 | -7/Garrison | Garrison Relay disabled 7063 | -7/Garrison | Garrison Relay disabled 7088 | -7/Garrison | Build established: Scavenger-Skirmisher 7105 | -7/Garrison | Rescued a captive Derelict 7195 | -7/Garrison | Entered Factory 7195 | -7/Factory | Accompanied by 1 ally 7600 | -7/Factory | Garrison activated, responded to threat 7803 | -7/Factory | Repaired Corrupted Fission Core 7815 | -7/Factory | Discovered new exit (range 12) 7919 | -7/Factory | Build established: Scavenger-Gunner 7965 | -7/Factory | Identified exit to Garrison 7965 | -7/Factory | Entered Garrison 8007 | -7/Garrison | Triggered checkpoint 8046 | -7/Garrison | Garrison Relay disabled 8495 | -7/Garrison | Lost 3 parts (2n1w) 8647 | -7/Garrison | Triggered checkpoint 8668 | -7/Garrison | Garrison Relay disabled 8742 | -7/Garrison | Discovered new exit (range 14) 8774 | -7/Garrison | Attempted to access garrison exit controls, blocked by remote lockdown 8899 | -7/Garrison | Triggered checkpoint 8989 | -7/Garrison | Discovered new exit (range 10) 9011 | -7/Garrison | Attempted to access garrison exit controls, blocked by remote lockdown 9033 | -7/Garrison | Garrison Relay disabled 9039 | -7/Garrison | Triggered checkpoint 9085 | -7/Garrison | Lost 3 parts (1p1n1w) 9277 | -7/Garrison | Triggered checkpoint 9297 | -7/Garrison | Garrison Relay disabled 9381 | -7/Garrison | Triggered checkpoint 9603 | -7/Garrison | Discovered new exit (range 8) 9672 | -7/Garrison | Entered Factory 10100 | -7/Factory | Discovered new exit (range 8) 10166 | -7/Factory | Entered Lower Caves 10302 | -7/Lower Caves | Met a Warlord Commander 10303 | -7/Lower Caves | Learned location of Warlord (-4) 10304 | -7/Lower Caves | Warlord Commander delivered Encrypted Comm Array 10306 | -7/Lower Caves | Found Encrypted Comm Array 10308 | -7/Lower Caves | Learned Factory stockpile data 10498 | -7/Lower Caves | Attacked by a faux Warlord 10517 | -7/Lower Caves | Attracted the attention of an 0b10 outpost 10545 | -7/Lower Caves | System corruption reached 10% 10558 | -7/Lower Caves | Core integrity fell below 50% 10604 | -7/Lower Caves | Destroyed 12 combat bots 10610 | -7/Lower Caves | Lost 16 parts (1p4n6u5w) 10894 | -7/Lower Caves | Lost 3 allies 11068 | -7/Lower Caves | Encountered a Warlord checkpoint 11873 | -7/Lower Caves | Attacked by a delusional Derelict stockpiling parts 12631 | -7/Lower Caves | Discovered new exit (range 8) 12715 | -7/Lower Caves | Entered another Lower Caves area 12735 | -7/Lower Caves | Discovered new exit (range 6) 12752 | -7/Lower Caves | Entered Factory 12752 | -6/Factory | Evolved 2 slots: Utility x2 13069 | -6/Factory | Build established: Scavenger-Skirmisher 13170 | -6/Factory | Lost 8 parts (2n2u4w) 13456 | -6/Factory | Joined by Warlord Dakka squad 13611 | -6/Factory | Lost 3 allies 13793 | -6/Factory | Lost 5 parts (1p1n1u2w) 13880 | -6/Factory | Build established: Mutant 14550 | -6/Factory | Build established: Scavenger-Mutant 14824 | -6/Factory | Lost 3 parts (1p2n) 15100 | -6/Factory | Build established: Scavenger-Gunner 15175 | -6/Factory | Discovered new exit (range 10) 15191 | -6/Factory | Entered Extension 15368 | -6/Extension | Core integrity fell below 50% 15698 | -6/Extension | Rescued a captive Derelict 15747 | -6/Extension | Rescued a captive Derelict 15748 | -6/Extension | Rescued a captive Derelict 15931 | -6/Extension | Rescued a captive Derelict 15935 | -6/Extension | Rescued a captive Derelict 15980 | -6/Extension | Rescued A7 16424 | -6/Extension | Spotted B-75 Beast 16435 | -6/Extension | Allies destroyed B-75 Beast 16460 | -6/Extension | Spotted B-75 Beast 16489 | -6/Extension | Allies destroyed B-75 Beast 16568 | -6/Extension | Rescued a captive Derelict 16570 | -6/Extension | Rescued a captive Derelict 16717 | -6/Extension | Build established: Commander-Gunner 16722 | -6/Extension | Rescued a captive Derelict 16792 | -6/Extension | Rescued a captive Derelict 16793 | -6/Extension | Rescued a captive Derelict 16850 | -6/Extension | Rescued a captive Derelict 16852 | -6/Extension | Rescued a captive Derelict 16952 | -6/Extension | Discovered new exit (range 10) 16954 | -6/Extension | Discovered new exit (range 6) 17087 | -6/Extension | Entered Cetus 17087 | -6/Cetus | Accompanied by 21 allies (A7) 17092 | -6/Cetus | Acquired a Cetus Manufacturing Module code from A7 17111 | -6/Cetus | Spotted Cetus Guard 17112 | -6/Cetus | Spotted Cetus Guard 17115 | -6/Cetus | Allies destroyed Cetus Guard 17117 | -6/Cetus | Spotted Cetus Guard 17117 | -6/Cetus | Spotted Cetus Guard 17127 | -6/Cetus | Allies destroyed Cetus Guard 17134 | -6/Cetus | Destroyed Cetus Guard 17134 | -6/Cetus | Allies destroyed Cetus Guard 17160 | -6/Cetus | Lost 4 allies 17283 | -6/Cetus | Started Cetus Manufacturing Module 17308 | -6/Cetus | Manufactured an Enhanced Grunt 17333 | -6/Cetus | Manufactured an Enhanced Grunt 17358 | -6/Cetus | Manufactured an Enhanced Grunt 17383 | -6/Cetus | Manufactured an Enhanced Grunt 17408 | -6/Cetus | Manufactured an Enhanced Grunt 17436 | -6/Cetus | Escorted A7 to Cetus Mainframe 17525 | -6/Cetus | Discovered new exit (range 15) 17614 | -6/Cetus | Spotted Cetus Guard 17615 | -6/Cetus | Spotted Cetus Guard 17619 | -6/Cetus | Spotted Cetus Guard 17619 | -6/Cetus | Spotted Cetus Guard 17622 | -6/Cetus | Allies destroyed Cetus Guard 17636 | -6/Cetus | Allies destroyed Cetus Guard 17648 | -6/Cetus | Allies destroyed Cetus Guard 17649 | -6/Cetus | Allies destroyed Cetus Guard 17660 | -6/Cetus | Discovered new exit (range 16) 17669 | -6/Cetus | Met Revision 17 17837 | -6/Cetus | Security sweep announced 17867 | -6/Cetus | Entered Archives 17867 | -6/Archives | Accompanied by 18 allies (A7) 17872 | -6/Archives | Received a hacking code to weaken MAIN.C 17921 | -6/Archives | Discovered new exit (range 16) 17934 | -6/Archives | Unable to access archive contents 17958 | -6/Archives | Unable to access archive contents 17962 | -6/Archives | Discovered new exit (range 16) 17977 | -6/Archives | Unable to access archive contents 17996 | -6/Archives | Unable to access archive contents 18000 | -6/Archives | Discovered new exit (range 16) 18733 | -6/Archives | Entered Hub_04(d) 18733 | -6/Hub_04(d) | Accompanied by 16 allies 18915 | -6/Hub_04(d) | Garrison activated, responded to threat 18983 | -6/Hub_04(d) | Discovered new exit (range 15) 18997 | -6/Hub_04(d) | Lost 3 allies 19105 | -6/Hub_04(d) | Discovered new exit (range 4) 19118 | -6/Hub_04(d) | Lost 7 allies 19163 | -6/Hub_04(d) | Entered Factory 19163 | -5/Factory | Accompanied by 2 allies 19163 | -5/Factory | Evolved 2 slots: Power x1, Utility x1 19266 | -5/Factory | Build established: Scavenger-Tank 19606 | -5/Factory | Joined by Warlord Dakka squad 19618 | -5/Factory | Discovered new exit (range 4) 19631 | -5/Factory | Entered Upper Caves 19640 | -5/Upper Caves | Learned location of Armory (-3) 20263 | -5/Upper Caves | Encountered a Warlord checkpoint 20268 | -5/Upper Caves | Discovered new exit (range 8) 20295 | -5/Upper Caves | Entered another Upper Caves area 20483 | -5/Upper Caves | Attracted the attention of an 0b10 checkpoint 20512 | -5/Upper Caves | Destroyed 8 combat bots 20541 | -5/Upper Caves | Learned location of 1 exit from Factory 20840 | -5/Upper Caves | Discovered new exit (range 7) 20928 | -5/Upper Caves | Entered Zhirov 20928 | -5/Zhirov | Discovered new exit (range 3) 20960 | -5/Zhirov | Met Zhirov 21020 | -5/Zhirov | Zhirov requested help retrieving the SGEMP Prototype 21045 | -5/Zhirov | Found Alien Artifact 21046 | -5/Zhirov | Identified Integrated Dissipator 21046 | -5/Zhirov | Installed Integrated Dissipator, increased core heat dissipation (+20) 21068 | -5/Zhirov | Found Alien Artifact 21247 | -5/Zhirov | Entered Proximity Caves 21546 | -4/Proximity Caves | Spotter reported a threat 21599 | -4/Proximity Caves | Spotter reported a threat 21751 | -4/Proximity Caves | Found Alien Artifact 21819 | -4/Proximity Caves | Spotted B-86 Titan 21851 | -4/Proximity Caves | Destroyed B-86 Titan 21929 | -4/Proximity Caves | Learned location of 1 exit from Research 22110 | -4/Proximity Caves | Learned Research security intel 22123 | -4/Proximity Caves | Discovered new exit (range 6) 22161 | -4/Proximity Caves | Entered Factory 22161 | -4/Factory | Evolved 2 slots: Propulsion x1, Weapon x1 22162 | -4/Factory | Identified exit to Research 22349 | -4/Factory | Fabricated Adv. Heavy Siege Treads (x1) 22972 | -4/Factory | Joined by Warlord Chimera squad 22993 | -4/Factory | P-70 Sage assimilated allied EJ-5RF(M) 23081 | -4/Factory | Found Prototype Processor 23081 | -4/Factory | Identified Exp. Signal Interpreter 23141 | -4/Factory | P-70 Sage assimilated allied 13-PZL(m) 23258 | -4/Factory | Build established: Scavenger-Gunner 23263 | -4/Factory | Identified Dimensional Node Initializer 23342 | -4/Factory | Joined by Warlord Dakka squad 23417 | -4/Factory | P-80 Master assimilated allied S7-ZP4(s) 23519 | -4/Factory | Joined by Warlord Muscle squad 23527 | -4/Factory | Spotted B-86 Titan 23554 | -4/Factory | Destroyed B-86 Titan 23571 | -4/Factory | Lost 3 allies 23633 | -4/Factory | Build established: Scavenger-Tank 23821 | -4/Factory | Discovered exit to Research (range 16) 23831 | -4/Factory | Identified exit to Upper Caves 23895 | -4/Factory | Sucked down chute 23895 | -4/Factory | Entered Waste 23902 | -4/Waste | Spotted C-40 Crusher 23907 | -4/Waste | Spotted C-40 Crusher 23915 | -4/Waste | Destroyed C-40 Crusher 23931 | -4/Waste | Destroyed C-40 Crusher 23939 | -4/Waste | Spotted C-40 Crusher 23956 | -4/Waste | Destroyed C-40 Crusher 23985 | -4/Waste | Spotted C-40 Crusher 24013 | -4/Waste | Spotted C-40 Crusher 24025 | -4/Waste | Destroyed C-40 Crusher 24088 | -4/Waste | Spotted C-40 Crusher 24095 | -4/Waste | Destroyed C-40 Crusher 24106 | -4/Waste | Destroyed C-40 Crusher 24336 | -4/Waste | Discovered new exit (range 12) 24348 | -4/Waste | Warlord forces began an assault 24662 | -4/Waste | Entered Factory 24662 | -4/Factory | Accompanied by 18 allies 24762 | -4/Factory | Joined by Warlord Dakka squad 24823 | -4/Factory | Discovered exit to Upper Caves (range 10) 24890 | -4/Factory | Repaired Biometal Heavy Treads 24939 | -4/Factory | Entered Upper Caves 24939 | -4/Upper Caves | Accompanied by 5 allies 24965 | -4/Upper Caves | Lost 17 allies 25006 | -4/Upper Caves | Attracted the attention of an 0b10 outpost 25401 | -4/Upper Caves | Discovered new exit (range 11) 25425 | -4/Upper Caves | Entered another Upper Caves area 25425 | -4/Upper Caves | Accompanied by 2 allies 25559 | -4/Upper Caves | Encountered a Warlord checkpoint 25598 | -4/Upper Caves | Attracted the attention of an 0b10 checkpoint 25613 | -4/Upper Caves | Identified exit to Warlord 25771 | -4/Upper Caves | Spotted B-86 Titan 25784 | -4/Upper Caves | Entered Warlord 25845 | -4/Warlord | System corruption cleaned by Quarantine Array 25979 | -4/Warlord | Visited the Vortex Lab 25991 | -4/Warlord | Warlord's base attacked by MAIN.C 25994 | -4/Warlord | Found Prototype Piercing Weapon 25995 | -4/Warlord | Identified Vortex Lance 26341 | -4/Warlord | Warlord forces counterattacked 26530 | -4/Warlord | Met Warlord 26626 | -4/Warlord | Spotted Striker 26666 | -4/Warlord | Warlord base infiltrated, sounded retreat 26667 | -4/Warlord | Enhanced Grunt warped into view 26667 | -4/Warlord | Enhanced Grunt warped into view 26667 | -4/Warlord | Enhanced Grunt warped into view 26667 | -4/Warlord | Enhanced Demolisher warped into view 26667 | -4/Warlord | Enhanced Demolisher warped into view 26667 | -4/Warlord | Enhanced Demolisher warped into view 26679 | -4/Warlord | Lost 5 allies 26743 | -4/Warlord | Spotted B-90 Cyclops 26749 | -4/Warlord | Spotted Executioner 26753 | -4/Warlord | Destroyed Executioner 26778 | -4/Warlord | Lost 4 allies 26819 | -4/Warlord | Spotted Executioner 26835 | -4/Warlord | Discovered new exit (range 14) 26855 | -4/Warlord | Lost 11 allies 26866 | -4/Warlord | Entered Proximity Caves 27201 | -3/Proximity Caves | Attracted the attention of an 0b10 checkpoint 27832 | -3/Proximity Caves | Spotted B-86 Titan 27851 | -3/Proximity Caves | Destroyed B-86 Titan 27875 | -3/Proximity Caves | Discovered exit to Research (range 12) 27992 | -3/Proximity Caves | Entered Research 27992 | -3/Research | Evolved 2 slots: Propulsion x1, Utility x1 27993 | -3/Research | Identified exit to Armory 27994 | -3/Research | Identified exit to Research 28192 | -3/Research | Revision forces began assault on 0b10 28253 | -3/Research | Met up with Revision 17++ 28368 | -3/Research | Build established: Scavenger-Gunner 28405 | -3/Research | Spotted B-86 Titan 28458 | -3/Research | Lost 3 allies 28692 | -3/Research | Research terminal network offline 29320 | -3/Research | Lost 6 allies 29360 | -3/Research | Found Prototype Processor 29368 | -3/Research | Identified Exp. Core Analyzer 29390 | -3/Research | Initialized slip node 29743 | -3/Research | Found Prototype Processor 29743 | -3/Research | Identified Exp. Targeting Computer 29823 | -3/Research | Entered another Research area 29823 | -2/Research | Warlord forces began assault on 0b10 29823 | -2/Research | Evolved 2 slots: Utility x1, Weapon x1 29933 | -2/Research | Research machine network offline 29979 | -2/Research | Spotted B-90 Cyclops 30110 | -2/Research | Build established: Scavenger-Executioner 30281 | -2/Research | Met DD-05H 30534 | -2/Research | Borebot progress halted 30551 | -2/Research | Lost 4 allies 30610 | -2/Research | Spotted Executioner 30611 | -2/Research | Spotted Executioner 30619 | -2/Research | Borebot progress halted 30619 | -2/Research | Borebot progress halted 30671 | -2/Research | Destroyed Executioner 30688 | -2/Research | Lost 8 allies 30701 | -2/Research | Spotted Striker 30702 | -2/Research | Spotted Striker 30707 | -2/Research | Destroyed Striker 30709 | -2/Research | Spotted Executioner 30710 | -2/Research | Destroyed Striker 30716 | -2/Research | Spotted Executioner 30719 | -2/Research | Destroyed Executioner 30719 | -2/Research | Destroyed Executioner 30758 | -2/Research | Destroyed 9 combat bots 30796 | -2/Research | Spotted Executioner 30819 | -2/Research | Destroyed Executioner 30845 | -2/Research | Lost 4 allies 30859 | -2/Research | Spotted Striker 30859 | -2/Research | Spotted Striker 30874 | -2/Research | Destroyed Striker 30879 | -2/Research | Spotted Executioner 30881 | -2/Research | Destroyed Striker 30881 | -2/Research | Destroyed Executioner 30886 | -2/Research | Spotted Executioner 30887 | -2/Research | Destroyed Executioner 30913 | -2/Research | Spotted Executioner 30920 | -2/Research | Destroyed 7 combat bots 30921 | -2/Research | Destroyed Executioner 30922 | -2/Research | Spotted Executioner 30929 | -2/Research | Destroyed Executioner 31266 | -2/Research | Spotted Executioner 31328 | -2/Research | Given Cave Seal Controls access code 31358 | -2/Research | Discovered new exit (range 21) 31395 | -2/Research | Entered Testing 31396 | -2/Testing | Maximum security lockdown engaged 31436 | -2/Testing | Found Prototype Protection 31436 | -2/Testing | Identified Med. Regenerative Plating 31444 | -2/Testing | Found Med. Regenerative Plating 31667 | -2/Testing | Spotted Executioner 31685 | -2/Testing | Scanned by Researcher 31688 | -2/Testing | Spotted Investigator 31712 | -2/Testing | System corruption reached 10% 31724 | -2/Testing | Destroyed Executioner 31726 | -2/Testing | Destroyed Investigator 31731 | -2/Testing | Identified Transdimensional Reconstructor 31731 | -2/Testing | Warped through subspace 31750 | -2/Testing | Destroyed 36 combat bots 31762 | -2/Testing | Lost 15 parts (2p1n6u6w) 31773 | -2/Testing | Spotted Investigator 31774 | -2/Testing | Spotted Striker 31775 | -2/Testing | Spotted Striker 31776 | -2/Testing | Destroyed Investigator 31779 | -2/Testing | Spotted Striker 31788 | -2/Testing | System corruption reached 30% 31794 | -2/Testing | Released all parts (9) 31807 | -2/Testing | Core integrity fell below 50% 31808 | -2/Testing | Spotted Fortress 31824 | -2/Testing | Lost 4 parts (1p1u2w) 31845 | -2/Testing | Discovered new exit (range 6) 31845 | -2/Testing | Discovered new exit (range 6) 31879 | -2/Testing | Core integrity fell below 20% 31886 | -2/Testing | Destroyed by P-80 Master with Gamma Rifle Last Messages --------------- 31795_ P-80 Master cannot be rewired. 31796_ S%5M:J9AUF20<9W#YC G75N07#PDVT4RA 31797_ P-80 Master resets P-80 Master, system corruption cleaned. 31803_ M-36 Artificer repairs P-80 Master. 31810_ ALERT: Suspected Assembled signals approaching deep research branches, engaging lockdown procedures. 31812_ System corrupted: Matter fused (-8). 31818_ Acquired 4 matter. 31826_ Acquired 8 matter. 31845_ EXIT=FOUND (Lockdown) 31863_ System corrupted: Energy discharge (-40). 31864_ P-80 Master destroyed. 31866_ Acquired 67 matter. 31868_ Acquired Adv. Target Analyzer. 31878_ System corrupted: Vortex Lance fused. 31883_ Destroyed Prototype Device. 31884_ P-80 Master resets Striker, system corruption cleaned. 31885_ Destroyed Lgt. Quantum Reactor. [Achievement: 40k Club] [Achievement: Punisher] Map ----- +----------------------------------------------------+ | ????????????????????????????? | | ????????????????????????????? | | ????????????????????????????? | | ????????????????????????????? | | ????????????????????????????? | | ????????????????????????????? | | ????????????????????????????? | | ????????????????????????????? | | ????????????????????????????? | | ????????????????????????????? | | ????????????????????????????? | | ????????????????????????????? | | ????????????????????????????? | | ????????????????????????????? | | ????????????????????????????? | | ????????????????????????????? | | ????????????????????????????? | | ????????????????????????##### | | #######################?# # | | p ### < # | | + ; | | + # | | + = # | | +! =pp# | | ###K